Workbook

Sheet BAŞLANGIÇ
B1: BU ŞABLON HAKKINDA
B2: Planlanan ve Fiili Giderlerle Varyansları izlemek için bu İş Gideri Bütçesi çalışma kitabını kullanın.
B3: Şirket Adını girin ve Logo ekleyin.
B4: Planlanan Giderler ve Fiili Giderler çalışma sayfalarındaki tablolara ayrıntıları girin.
B5: Tablolar, Gider Varyansları çalışma sayfası ve Gider Analizi çalışma sayfasındaki grafiklerde otomatik olarak güncelleştirilir
B6: Not:
B7: Her çalışma sayfasının A sütununda ek yönergeler sağlanmıştır. Bu metin özellikle gizlendi. Metni kaldırmak için A sütununu ve ardından SİL seçeneğini belirleyin. Metni göstermek için A sütununu seçin ve yazı tipi rengini değiştirin.
B8: Tablolar hakkında daha fazla bilgi edinmek için bir tabloda SHIFT ve F10 tuşlarına basın, TABLO seçeneğini ve ardından ALTERNATİF METİN seçeneğini belirleyin

Sheet PLANLANAN GİDERLER
B2: Şirket Adı | K2: Ayrıntılı Gider Tahminleri
K3: Gölgeli hücreler hesaplamalardır.
B4: PLANLANAN GİDERLER | C4: OCA | D4: ŞUB | E4: MAR | F4: NİS | G4: MAY | H4: HAZ | I4: TEM | J4: AĞU | K4: EYL | L4: EKİ | M4: KAS | N4: ARA | O4: YIL
B5: Çalışan Maliyetleri | C5: Oca | D5: Şub | E5: Mar | F5: Nis | G5: May | H5: Haz | I5: Tem | J5: Ağu | K5: Eyl | L5: Eki | M5: Kas | N5: Ara | O5: YIL
B6: Maaşlar | C6: ₺85,000.00 | D6: ₺85,000.00 | E6: ₺85,000.00 | F6: ₺87,500.00 | G6: ₺87,500.00 | H6: ₺87,500.00 | I6: ₺87,500.00 | J6: ₺92,400.00 | K6: ₺92,400.00 | L6: ₺92,400.00 | M6: ₺92,400.00 | N6: ₺92,400.00 | O6: =SUM(C6:N6) -> ₺1,067,000.00
B7: Kazançlar | C7: =C6*0.27 -> ₺22,950.00 | D7: ₺22,950.00 | E7: ₺22,950.00 | F7: ₺23,625.00 | G7: ₺23,625.00 | H7: ₺23,625.00 | I7: ₺23,625.00 | J7: ₺24,948.00 | K7: ₺24,948.00 | L7: ₺24,948.00 | M7: ₺24,948.00 | N7: ₺24,948.00 | O7: =SUM(C7:N7) -> ₺288,090.00
B8: Ara toplam | C8: =SUBTOTAL(109,ÇalışanPlan[Oca]) -> ₺107,950.00 | D8: =SUBTOTAL(109,ÇalışanPlan[Şub]) -> ₺107,950.00 | E8: =SUBTOTAL(109,ÇalışanPlan[Mar]) -> ₺107,950.00 | F8: =SUBTOTAL(109,ÇalışanPlan[Nis]) -> ₺111,125.00 | G8: =SUBTOTAL(109,ÇalışanPlan[May]) -> ₺111,125.00 | H8: =SUBTOTAL(109,ÇalışanPlan[Haz]) -> ₺111,125.00 | I8: =SUBTOTAL(109,ÇalışanPlan[Tem]) -> ₺111,125.00 | J8: =SUBTOTAL(109,ÇalışanPlan[Ağu]) -> ₺117,348.00 | K8: =SUBTOTAL(109,ÇalışanPlan[Eyl]) -> ₺117,348.00 | L8: =SUBTOTAL(109,ÇalışanPlan[Eki]) -> ₺117,348.00 | M8: =SUBTOTAL(109,ÇalışanPlan[Kas]) -> ₺117,348.00 | N8: =SUBTOTAL(109,ÇalışanPlan[Ara]) -> ₺117,348.00 | O8: =SUBTOTAL(109,ÇalışanPlan[YIL]) -> ₺1,355,090.00
B10: Ofis Maliyetleri | C10: Oca | D10: Şub | E10: Mar | F10: Nis | G10: May | H10: Haz | I10: Tem | J10: Ağu | K10: Eyl | L10: Eki | M10: Kas | N10: Ara | O10: YIL
B11: Ofis kirası | C11: ₺9,800.00 | D11: ₺9,800.00 | E11: ₺9,800.00 | F11: ₺9,800.00 | G11: ₺9,800.00 | H11: ₺9,800.00 | I11: ₺9,800.00 | J11: ₺9,800.00 | K11: ₺9,800.00 | L11: ₺9,800.00 | M11: ₺9,800.00 | N11: ₺9,800.00 | O11: =SUM(C11:N11) -> ₺117,600.00
B12: Doğalgaz | D12: ₺400.00 | E12: ₺400.00 | F12: ₺100.00 | G12: ₺100.00 | H12: ₺100.00 | I12: ₺100.00 | J12: ₺100.00 | K12: ₺100.00 | L12: ₺100.00 | M12: ₺400.00 | N12: ₺400.00 | O12: ₺2,300.00
B13: Elektrik | C13: ₺300.00 | D13: ₺300.00 | E13: ₺300.00 | F13: ₺300.00 | G13: ₺300.00 | H13: ₺300.00 | I13: ₺300.00 | J13: ₺300.00 | K13: ₺300.00 | L13: ₺300.00 | M13: ₺300.00 | N13: ₺300.00 | O13: ₺3,600.00
B14: Su | C14: ₺40.00 | D14: ₺40.00 | E14: ₺40.00 | F14: ₺40.00 | G14: ₺40.00 | H14: ₺40.00 | I14: ₺40.00 | J14: ₺40.00 | K14: ₺40.00 | L14: ₺40.00 | M14: ₺40.00 | N14: ₺40.00 | O14: ₺480.00
B15: Telefon | C15: ₺250.00 | D15: ₺250.00 | E15: ₺250.00 | F15: ₺250.00 | G15: ₺250.00 | H15: ₺250.00 | I15: ₺250.00 | J15: ₺250.00 | K15: ₺250.00 | L15: ₺250.00 | M15: ₺250.00 | N15: ₺250.00 | O15: ₺3,000.00
B16: İnternet erişimi | C16: ₺180.00 | D16: ₺180.00 | E16: ₺180.00 | F16: ₺180.00 | G16: ₺180.00 | H16: ₺180.00 | I16: ₺180.00 | J16: ₺180.00 | K16: ₺180.00 | L16: ₺180.00 | M16: ₺180.00 | N16: ₺180.00 | O16: ₺2,160.00
B17: Ofis malzemeleri | C17: ₺200.00 | D17: ₺200.00 | E17: ₺200.00 | F17: ₺200.00 | G17: ₺200.00 | H17: ₺200.00 | I17: ₺200.00 | J17: ₺200.00 | K17: ₺200.00 | L17: ₺200.00 | M17: ₺200.00 | N17: ₺200.00 | O17: ₺2,400.00
B18: Güvenlik | C18: ₺600.00 | D18: ₺600.00 | E18: ₺600.00 | F18: ₺600.00 | G18: ₺600.00 | H18: ₺600.00 | I18: ₺600.00 | J18: ₺600.00 | K18: ₺600.00 | L18: ₺600.00 | M18: ₺600.00 | N18: ₺600.00 | O18: ₺7,200.00
B19: Ara toplam | C19: =SUBTOTAL(109,OfficePlan[Oca]) -> ₺11,370.00 | D19: =SUBTOTAL(109,OfficePlan[Şub]) -> ₺11,770.00 | E19: =SUBTOTAL(109,OfficePlan[Mar]) -> ₺11,770.00 | F19: =SUBTOTAL(109,OfficePlan[Nis]) -> ₺11,470.00 | G19: =SUBTOTAL(109,OfficePlan[May]) -> ₺11,470.00 | H19: =SUBTOTAL(109,OfficePlan[Haz]) -> ₺11,470.00 | I19: =SUBTOTAL(109,OfficePlan[Tem]) -> ₺11,470.00 | J19: =SUBTOTAL(109,OfficePlan[Ağu]) -> ₺11,470.00 | K19: =SUBTOTAL(109,OfficePlan[Eyl]) -> ₺11,470.00 | L19: =SUBTOTAL(109,OfficePlan[Eki]) -> ₺11,470.00 | M19: =SUBTOTAL(109,OfficePlan[Kas]) -> ₺11,770.00 | N19: =SUBTOTAL(109,OfficePlan[Ara]) -> ₺11,770.00 | O19: =SUBTOTAL(109,OfficePlan[YIL]) -> ₺138,740.00
B21: Pazarlama Maliyetleri | C21: Oca | D21: Şub | E21: Mar | F21: Nis | G21: May | H21: Haz | I21: Tem | J21: Ağu | K21: Eyl | L21: Eki | M21: Kas | N21: Ara | O21: YIL
B22: Web sitesi barındırma | C22: ₺500.00 | D22: ₺500.00 | E22: ₺500.00 | F22: ₺500.00 | G22: ₺500.00 | H22: ₺500.00 | I22: ₺500.00 | J22: ₺500.00 | K22: ₺500.00 | L22: ₺500.00 | M22: ₺500.00 | N22: ₺500.00 | O22: =SUM(C22:N22) -> ₺6,000.00
B23: Web sitesi güncelleştirmeleri | C23: ₺200.00 | D23: ₺200.00 | E23: ₺200.00 | F23: ₺200.00 | G23: ₺200.00 | H23: ₺1,000.00 | I23: ₺200.00 | J23: ₺200.00 | K23: ₺200.00 | L23: ₺200.00 | M23: ₺200.00 | N23: ₺1,000.00 | O23: ₺4,000.00
B24: Yardımcı malzeme hazırlığı | C24: ₺5,000.00 | D24: ₺0.00 | E24: ₺0.00 | F24: ₺5,000.00 | G24: ₺0.00 | H24: ₺0.00 | I24: ₺5,000.00 | J24: ₺0.00 | K24: ₺0.00 | L24: ₺5,000.00 | M24: ₺0.00 | N24: ₺0.00 | O24: ₺20,000.00
B25: Yardımcı malzemeleri yazdırma | C25: ₺200.00 | D25: ₺200.00 | E25: ₺200.00 | F25: ₺200.00 | G25: ₺200.00 | H25: ₺200.00 | I25: ₺200.00 | J25: ₺200.00 | K25: ₺200.00 | L25: ₺200.00 | M25: ₺200.00 | N25: ₺200.00 | O25: ₺2,400.00
B26: Pazarlama etkinlikleri | C26: ₺2,000.00 | D26: ₺2,000.00 | E26: ₺2,000.00 | F26: ₺5,000.00 | G26: ₺2,000.00 | H26: ₺2,000.00 | I26: ₺2,000.00 | J26: ₺5,000.00 | K26: ₺2,000.00 | L26: ₺2,000.00 | M26: ₺2,000.00 | N26: ₺5,000.00 | O26: ₺33,000.00
B27: Sair giderler | C27: ₺200.00 | D27: ₺200.00 | E27: ₺200.00 | F27: ₺200.00 | G27: ₺200.00 | H27: ₺200.00 | I27: ₺200.00 | J27: ₺200.00 | K27: ₺200.00 | L27: ₺200.00 | M27: ₺200.00 | N27: ₺200.00 | O27: ₺2,400.00
B28: Ara toplam | C28: =SUBTOTAL(109,MarketingPlan[Oca]) -> ₺8,100.00 | D28: =SUBTOTAL(109,MarketingPlan[Şub]) -> ₺3,100.00 | E28: =SUBTOTAL(109,MarketingPlan[Mar]) -> ₺3,100.00 | F28: =SUBTOTAL(109,MarketingPlan[Nis]) -> ₺11,100.00 | G28: =SUBTOTAL(109,MarketingPlan[May]) -> ₺3,100.00 | H28: =SUBTOTAL(109,MarketingPlan[Haz]) -> ₺3,900.00 | I28: =SUBTOTAL(109,MarketingPlan[Tem]) -> ₺8,100.00 | J28: =SUBTOTAL(109,MarketingPlan[Ağu]) -> ₺6,100.00 | K28: =SUBTOTAL(109,MarketingPlan[Eyl]) -> ₺3,100.00 | L28: =SUBTOTAL(109,MarketingPlan[Eki]) -> ₺8,100.00 | M28: =SUBTOTAL(109,MarketingPlan[Kas]) -> ₺3,100.00 | N28: =SUBTOTAL(109,MarketingPlan[Ara]) -> ₺6,900.00 | O28: =SUBTOTAL(109,MarketingPlan[YIL]) -> ₺67,800.00
B30: Eğitim/Seyahat | C30: Oca | D30: Şub | E30: Mar | F30: Nis | G30: May | H30: Haz | I30: Tem | J30: Ağu | K30: Eyl | L30: Eki | M30: Kas | N30: Ara | O30: YIL
B31: Eğitim sınıfları | C31: ₺2,000.00 | D31: ₺2,000.00 | E31: ₺2,000.00 | F31: ₺2,000.00 | G31: ₺2,000.00 | H31: ₺2,000.00 | I31: ₺2,000.00 | J31: ₺2,000.00 | K31: ₺2,000.00 | L31: ₺2,000.00 | M31: ₺2,000.00 | N31: ₺2,000.00 | O31: =SUM(C31:N31) -> ₺24,000.00
B32: Eğitimle ilgili seyahat maliyetleri | C32: ₺2,000.00 | D32: ₺2,000.00 | E32: ₺2,000.00 | F32: ₺2,000.00 | G32: ₺2,000.00 | H32: ₺2,000.00 | I32: ₺2,000.00 | J32: ₺2,000.00 | K32: ₺2,000.00 | L32: ₺2,000.00 | M32: ₺2,000.00 | N32: ₺2,000.00 | O32: =SUM(C32:N32) -> ₺24,000.00
B33: Ara toplam | C33: =SUBTOTAL(109,EğitimVeSeyahatPlanı[Oca]) -> ₺4,000.00 | D33: =SUBTOTAL(109,EğitimVeSeyahatPlanı[Şub]) -> ₺4,000.00 | E33: =SUBTOTAL(109,EğitimVeSeyahatPlanı[Mar]) -> ₺4,000.00 | F33: =SUBTOTAL(109,EğitimVeSeyahatPlanı[Nis]) -> ₺4,000.00 | G33: =SUBTOTAL(109,EğitimVeSeyahatPlanı[May]) -> ₺4,000.00 | H33: =SUBTOTAL(109,EğitimVeSeyahatPlanı[Haz]) -> ₺4,000.00 | I33: =SUBTOTAL(109,EğitimVeSeyahatPlanı[Tem]) -> ₺4,000.00 | J33: =SUBTOTAL(109,EğitimVeSeyahatPlanı[Ağu]) -> ₺4,000.00 | K33: =SUBTOTAL(109,EğitimVeSeyahatPlanı[Eyl]) -> ₺4,000.00 | L33: =SUBTOTAL(109,EğitimVeSeyahatPlanı[Eki]) -> ₺4,000.00 | M33: =SUBTOTAL(109,EğitimVeSeyahatPlanı[Kas]) -> ₺4,000.00 | N33: =SUBTOTAL(109,EğitimVeSeyahatPlanı[Ara]) -> ₺4,000.00 | O33: =SUBTOTAL(109,EğitimVeSeyahatPlanı[YIL]) -> ₺48,000.00
B35: TOPLAMLAR | C35: Oca | D35: Şub | E35: Mar | F35: Nis | G35: May | H35: Haz | I35: Tem | J35: Ağu | K35: Eyl | L35: Eki | M35: Kas | N35: Ara | O35: Yıl
B36: Aylık Planlanan Giderler | C36: =EğitimVeSeyahatPlanı[[#Totals],[Oca]]+MarketingPlan[[#Totals],[Oca]]+OfficePlan[[#Totals],[Oca]]+ÇalışanPlan[[#Totals],[Oca]] -> ₺131,420.00 | D36: =EğitimVeSeyahatPlanı[[#Totals],[Şub]]+MarketingPlan[[#Totals],[Şub]]+OfficePlan[[#Totals],[Şub]]+ÇalışanPlan[[#Totals],[Şub]] -> ₺126,820.00 | E36: =EğitimVeSeyahatPlanı[[#Totals],[Mar]]+MarketingPlan[[#Totals],[Mar]]+OfficePlan[[#Totals],[Mar]]+ÇalışanPlan[[#Totals],[Mar]] -> ₺126,820.00 | F36: =EğitimVeSeyahatPlanı[[#Totals],[Nis]]+MarketingPlan[[#Totals],[Nis]]+OfficePlan[[#Totals],[Nis]]+ÇalışanPlan[[#Totals],[Nis]] -> ₺137,695.00 | G36: =EğitimVeSeyahatPlanı[[#Totals],[May]]+MarketingPlan[[#Totals],[May]]+OfficePlan[[#Totals],[May]]+ÇalışanPlan[[#Totals],[May]] -> ₺129,695.00 | H36: =EğitimVeSeyahatPlanı[[#Totals],[Haz]]+MarketingPlan[[#Totals],[Haz]]+OfficePlan[[#Totals],[Haz]]+ÇalışanPlan[[#Totals],[Haz]] -> ₺130,495.00 | I36: =EğitimVeSeyahatPlanı[[#Totals],[Tem]]+MarketingPlan[[#Totals],[Tem]]+OfficePlan[[#Totals],[Tem]]+ÇalışanPlan[[#Totals],[Tem]] -> ₺134,695.00 | J36: =EğitimVeSeyahatPlanı[[#Totals],[Ağu]]+MarketingPlan[[#Totals],[Ağu]]+OfficePlan[[#Totals],[Ağu]]+ÇalışanPlan[[#Totals],[Ağu]] -> ₺138,918.00 | K36: =EğitimVeSeyahatPlanı[[#Totals],[Eyl]]+MarketingPlan[[#Totals],[Eyl]]+OfficePlan[[#Totals],[Eyl]]+ÇalışanPlan[[#Totals],[Eyl]] -> ₺135,918.00 | L36: =EğitimVeSeyahatPlanı[[#Totals],[Eki]]+MarketingPlan[[#Totals],[Eki]]+OfficePlan[[#Totals],[Eki]]+ÇalışanPlan[[#Totals],[Eki]] -> ₺140,918.00 | M36: =EğitimVeSeyahatPlanı[[#Totals],[Kas]]+MarketingPlan[[#Totals],[Kas]]+OfficePlan[[#Totals],[Kas]]+ÇalışanPlan[[#Totals],[Kas]] -> ₺136,218.00 | N36: =EğitimVeSeyahatPlanı[[#Totals],[Ara]]+MarketingPlan[[#Totals],[Ara]]+OfficePlan[[#Totals],[Ara]]+ÇalışanPlan[[#Totals],[Ara]] -> ₺140,018.00 | O36: =EğitimVeSeyahatPlanı[[#Totals],[YIL]]+MarketingPlan[[#Totals],[YIL]]+OfficePlan[[#Totals],[YIL]]+ÇalışanPlan[[#Totals],[YIL]] -> ₺1,609,630.00
B37: TOPLAM Planlanan Giderler | C37: =SUM($C$36:C36) -> ₺131,420.00 | D37: =SUM($C$36:D36) -> ₺258,240.00 | E37: =SUM($C$36:E36) -> ₺385,060.00 | F37: =SUM($C$36:F36) -> ₺522,755.00 | G37: =SUM($C$36:G36) -> ₺652,450.00 | H37: =SUM($C$36:H36) -> ₺782,945.00 | I37: =SUM($C$36:I36) -> ₺917,640.00 | J37: =SUM($C$36:J36) -> ₺1,056,558.00 | K37: =SUM($C$36:K36) -> ₺1,192,476.00 | L37: =SUM($C$36:L36) -> ₺1,333,394.00 | M37: =SUM($C$36:M36) -> ₺1,469,612.00 | N37: =SUM($C$36:N36) -> ₺1,609,630.00

Sheet FİİLİ GİDERLER
B2: ='PLANLANAN GİDERLER'!B2:D3 -> Şirket Adı | K2: =worksheet_title -> Ayrıntılı Gider Tahminleri
K3: Gölgeli hücreler hesaplamalardır.
B4: FİİLİ GİDERLER | C4: OCA | D4: ŞUB | E4: MAR | F4: NİS | G4: MAY | H4: HAZ | I4: TEM | J4: AĞU | K4: EYL | L4: EKİ | M4: KAS | N4: ARA | O4: YIL
B5: Çalışan Maliyetleri | C5: Oca | D5: Şub | E5: Mar | F5: Nis | G5: May | H5: Haz | I5: Tem | J5: Ağu | K5: Eyl | L5: Eki | M5: Kas | N5: Ara | O5: YIL
B6: Maaşlar | C6: ₺85,000.00 | D6: ₺85,000.00 | E6: ₺85,000.00 | F6: ₺88,000.00 | G6: ₺88,000.00 | H6: ₺88,000.00 | O6: =SUM(C6:N6) -> ₺519,000.00
B7: Kazançlar | C7: =C6*0.27 -> ₺22,950.00 | D7: ₺22,950.00 | E7: ₺22,950.00 | F7: ₺23,760.00 | G7: ₺23,760.00 | H7: ₺23,760.00 | I7: ₺0.00 | J7: ₺0.00 | K7: ₺0.00 | L7: ₺0.00 | M7: ₺0.00 | N7: ₺0.00 | O7: =SUM(C7:N7) -> ₺140,130.00
B8: Ara toplam | C8: =SUBTOTAL(109,EmployeeActual[Oca]) -> ₺107,950.00 | D8: =SUBTOTAL(109,EmployeeActual[Şub]) -> ₺107,950.00 | E8: =SUBTOTAL(109,EmployeeActual[Mar]) -> ₺107,950.00 | F8: =SUBTOTAL(109,EmployeeActual[Nis]) -> ₺111,760.00 | G8: =SUBTOTAL(109,EmployeeActual[May]) -> ₺111,760.00 | H8: =SUBTOTAL(109,EmployeeActual[Haz]) -> ₺111,760.00 | I8: =SUBTOTAL(109,EmployeeActual[Tem]) -> ₺0.00 | J8: =SUBTOTAL(109,EmployeeActual[Ağu]) -> ₺0.00 | K8: =SUBTOTAL(109,EmployeeActual[Eyl]) -> ₺0.00 | L8: =SUBTOTAL(109,EmployeeActual[Eki]) -> ₺0.00 | M8: =SUBTOTAL(109,EmployeeActual[Kas]) -> ₺0.00 | N8: =SUBTOTAL(109,EmployeeActual[Ara]) -> ₺0.00 | O8: =SUBTOTAL(109,EmployeeActual[YIL]) -> ₺659,130.00
B10: Ofis Maliyetleri | C10: Oca | D10: Şub | E10: Mar | F10: Nis | G10: May | H10: Haz | I10: Tem | J10: Ağu | K10: Eyl | L10: Eki | M10: Kas | N10: Ara | O10: YIL
B11: Ofis kirası | C11: ₺9,800.00 | D11: ₺9,800.00 | E11: ₺9,800.00 | F11: ₺9,800.00 | G11: ₺9,800.00 | H11: ₺9,800.00 | O11: =SUM(C11:N11) -> ₺58,800.00
B12: Doğalgaz | C12: ₺4.00 | D12: ₺430.00 | E12: ₺385.00 | F12: ₺230.00 | G12: ₺87.00 | H12: ₺88.00 | O12: ₺1,224.00
B13: Elektrik | C13: ₺288.00 | D13: ₺278.00 | E13: ₺268.00 | F13: ₺299.00 | G13: ₺306.00 | H13: ₺290.00 | O13: ₺1,729.00
B14: Su | C14: ₺35.00 | D14: ₺33.00 | E14: ₺34.00 | F14: ₺36.00 | G14: ₺34.00 | H14: ₺36.00 | O14: ₺208.00
B15: Telefon | C15: ₺224.00 | D15: ₺235.00 | E15: ₺265.00 | F15: ₺245.00 | G15: ₺245.00 | H15: ₺220.00 | O15: ₺1,434.00
B16: İnternet erişimi | C16: ₺180.00 | D16: ₺180.00 | E16: ₺180.00 | F16: ₺180.00 | G16: ₺180.00 | H16: ₺180.00 | O16: ₺1,080.00
B17: Ofis malzemeleri | C17: ₺256.00 | D17: ₺142.00 | E17: ₺160.00 | F17: ₺221.00 | G17: ₺256.00 | H17: ₺240.00 | O17: ₺1,275.00
B18: Güvenlik | C18: ₺600.00 | D18: ₺600.00 | E18: ₺600.00 | F18: ₺600.00 | G18: ₺600.00 | H18: ₺600.00 | O18: ₺3,600.00
B19: Ara toplam | C19: =SUBTOTAL(109,OfficeActual[Oca]) -> ₺11,387.00 | D19: =SUBTOTAL(109,OfficeActual[Şub]) -> ₺11,698.00 | E19: =SUBTOTAL(109,OfficeActual[Mar]) -> ₺11,692.00 | F19: =SUBTOTAL(109,OfficeActual[Nis]) -> ₺11,611.00 | G19: =SUBTOTAL(109,OfficeActual[May]) -> ₺11,508.00 | H19: =SUBTOTAL(109,OfficeActual[Haz]) -> ₺11,454.00 | I19: =SUBTOTAL(109,OfficeActual[Tem]) -> ₺0.00 | J19: =SUBTOTAL(109,OfficeActual[Ağu]) -> ₺0.00 | K19: =SUBTOTAL(109,OfficeActual[Eyl]) -> ₺0.00 | L19: =SUBTOTAL(109,OfficeActual[Eki]) -> ₺0.00 | M19: =SUBTOTAL(109,OfficeActual[Kas]) -> ₺0.00 | N19: =SUBTOTAL(109,OfficeActual[Ara]) -> ₺0.00 | O19: =SUBTOTAL(109,OfficeActual[YIL]) -> ₺69,350.00
B21: Pazarlama Maliyetleri | C21: Oca | D21: Şub | E21: Mar | F21: Nis | G21: May | H21: Haz | I21: Tem | J21: Ağu | K21: Eyl | L21: Eki | M21: Kas | N21: Ara | O21: YIL
B22: Web sitesi barındırma | C22: ₺500.00 | D22: ₺500.00 | E22: ₺500.00 | F22: ₺500.00 | G22: ₺500.00 | H22: ₺500.00 | O22: =SUM(C22:N22) -> ₺3,000.00
B23: Web sitesi güncelleştirmeleri | C23: ₺200.00 | D23: ₺200.00 | E23: ₺200.00 | F23: ₺200.00 | G23: ₺200.00 | H23: ₺1,500.00 | O23: ₺2,500.00
B24: Yardımcı malzeme hazırlığı | C24: ₺4,800.00 | D24: ₺0.00 | E24: ₺0.00 | F24: ₺5,500.00 | G24: ₺0.00 | H24: ₺0.00 | O24: ₺10,300.00
B25: Yardımcı malzemeleri yazdırma | C25: ₺100.00 | D25: ₺500.00 | E25: ₺100.00 | F25: ₺100.00 | G25: ₺600.00 | H25: ₺180.00 | O25: ₺1,580.00
B26: Pazarlama etkinlikleri | C26: ₺1,800.00 | D26: ₺2,200.00 | E26: ₺2,200.00 | F26: ₺4,700.00 | G26: ₺1,500.00 | H26: ₺2,300.00 | O26: ₺14,700.00
B27: Sair giderler | C27: ₺145.00 | D27: ₺156.00 | E27: ₺123.00 | F27: ₺223.00 | G27: ₺187.00 | H27: ₺245.00 | O27: ₺1,079.00
B28: Ara toplam | C28: =SUBTOTAL(109,MarketingActual[Oca]) -> ₺7,545.00 | D28: =SUBTOTAL(109,MarketingActual[Şub]) -> ₺3,556.00 | E28: =SUBTOTAL(109,MarketingActual[Mar]) -> ₺3,123.00 | F28: =SUBTOTAL(109,MarketingActual[Nis]) -> ₺11,223.00 | G28: =SUBTOTAL(109,MarketingActual[May]) -> ₺2,987.00 | H28: =SUBTOTAL(109,MarketingActual[Haz]) -> ₺4,725.00 | I28: =SUBTOTAL(109,MarketingActual[Tem]) -> ₺0.00 | J28: =SUBTOTAL(109,MarketingActual[Ağu]) -> ₺0.00 | K28: =SUBTOTAL(109,MarketingActual[Eyl]) -> ₺0.00 | L28: =SUBTOTAL(109,MarketingActual[Eki]) -> ₺0.00 | M28: =SUBTOTAL(109,MarketingActual[Kas]) -> ₺0.00 | N28: =SUBTOTAL(109,MarketingActual[Ara]) -> ₺0.00 | O28: =SUBTOTAL(109,MarketingActual[YIL]) -> ₺33,159.00
B30: Eğitim/Seyahat | C30: Oca | D30: Şub | E30: Mar | F30: Nis | G30: May | H30: Haz | I30: Tem | J30: Ağu | K30: Eyl | L30: Eki | M30: Kas | N30: Ara | O30: YIL
B31: Eğitim sınıfları | C31: ₺1,600.00 | D31: ₺2,400.00 | E31: ₺1,400.00 | F31: ₺1,600.00 | G31: ₺1,200.00 | H31: ₺2,800.00 | O31: =SUM(C31:N31) -> ₺11,000.00
B32: Eğitimle ilgili seyahat maliyetleri | C32: ₺1,200.00 | D32: ₺2,200.00 | E32: ₺1,400.00 | F32: ₺1,200.00 | G32: ₺800.00 | H32: ₺3,500.00 | O32: =SUM(C32:N32) -> ₺10,300.00
B33: Ara toplam | C33: =SUBTOTAL(109,TrainingAndTravelActual[Oca]) -> ₺2,800.00 | D33: =SUBTOTAL(109,TrainingAndTravelActual[Şub]) -> ₺4,600.00 | E33: =SUBTOTAL(109,TrainingAndTravelActual[Mar]) -> ₺2,800.00 | F33: =SUBTOTAL(109,TrainingAndTravelActual[Nis]) -> ₺2,800.00 | G33: =SUBTOTAL(109,TrainingAndTravelActual[May]) -> ₺2,000.00 | H33: =SUBTOTAL(109,TrainingAndTravelActual[Haz]) -> ₺6,300.00 | I33: =SUBTOTAL(109,TrainingAndTravelActual[Tem]) -> ₺0.00 | J33: =SUBTOTAL(109,TrainingAndTravelActual[Ağu]) -> ₺0.00 | K33: =SUBTOTAL(109,TrainingAndTravelActual[Eyl]) -> ₺0.00 | L33: =SUBTOTAL(109,TrainingAndTravelActual[Eki]) -> ₺0.00 | M33: =SUBTOTAL(109,TrainingAndTravelActual[Kas]) -> ₺0.00 | N33: =SUBTOTAL(109,TrainingAndTravelActual[Ara]) -> ₺0.00 | O33: =SUBTOTAL(109,TrainingAndTravelActual[YIL]) -> ₺21,300.00
B35: TOPLAM Planlanan Giderler | C35: Oca | D35: Şub | E35: Mar | F35: Nis | G35: May | H35: Haz | I35: Tem | J35: Ağu | K35: Eyl | L35: Eki | M35: Kas | N35: Ara | O35: Yıl
B36: Aylık Fiili Giderler | C36: =TrainingAndTravelActual[[#Totals],[Oca]]+MarketingActual[[#Totals],[Oca]]+OfficeActual[[#Totals],[Oca]]+EmployeeActual[[#Totals],[Oca]] -> ₺129,682.00 | D36: =TrainingAndTravelActual[[#Totals],[Şub]]+MarketingActual[[#Totals],[Şub]]+OfficeActual[[#Totals],[Şub]]+EmployeeActual[[#Totals],[Şub]] -> ₺127,804.00 | E36: =TrainingAndTravelActual[[#Totals],[Mar]]+MarketingActual[[#Totals],[Mar]]+OfficeActual[[#Totals],[Mar]]+EmployeeActual[[#Totals],[Mar]] -> ₺125,565.00 | F36: =TrainingAndTravelActual[[#Totals],[Nis]]+MarketingActual[[#Totals],[Nis]]+OfficeActual[[#Totals],[Nis]]+EmployeeActual[[#Totals],[Nis]] -> ₺137,394.00 | G36: =TrainingAndTravelActual[[#Totals],[May]]+MarketingActual[[#Totals],[May]]+OfficeActual[[#Totals],[May]]+EmployeeActual[[#Totals],[May]] -> ₺128,255.00 | H36: =TrainingAndTravelActual[[#Totals],[Haz]]+MarketingActual[[#Totals],[Haz]]+OfficeActual[[#Totals],[Haz]]+EmployeeActual[[#Totals],[Haz]] -> ₺134,239.00 | I36: =TrainingAndTravelActual[[#Totals],[Tem]]+MarketingActual[[#Totals],[Tem]]+OfficeActual[[#Totals],[Tem]]+EmployeeActual[[#Totals],[Tem]] -> ₺0.00 | J36: =TrainingAndTravelActual[[#Totals],[Ağu]]+MarketingActual[[#Totals],[Ağu]]+OfficeActual[[#Totals],[Ağu]]+EmployeeActual[[#Totals],[Ağu]] -> ₺0.00 | K36: =TrainingAndTravelActual[[#Totals],[Eyl]]+MarketingActual[[#Totals],[Eyl]]+OfficeActual[[#Totals],[Eyl]]+EmployeeActual[[#Totals],[Eyl]] -> ₺0.00 | L36: =TrainingAndTravelActual[[#Totals],[Eki]]+MarketingActual[[#Totals],[Eki]]+OfficeActual[[#Totals],[Eki]]+EmployeeActual[[#Totals],[Eki]] -> ₺0.00 | M36: =TrainingAndTravelActual[[#Totals],[Kas]]+MarketingActual[[#Totals],[Kas]]+OfficeActual[[#Totals],[Kas]]+EmployeeActual[[#Totals],[Kas]] -> ₺0.00 | N36: =TrainingAndTravelActual[[#Totals],[Ara]]+MarketingActual[[#Totals],[Ara]]+OfficeActual[[#Totals],[Ara]]+EmployeeActual[[#Totals],[Ara]] -> ₺0.00 | O36: =TrainingAndTravelActual[[#Totals],[YIL]]+MarketingActual[[#Totals],[YIL]]+OfficeActual[[#Totals],[YIL]]+EmployeeActual[[#Totals],[YIL]] -> ₺782,939.00
B37: TOPLAM Fiili Giderler | C37: =SUM($C$36:C36) -> ₺129,682.00 | D37: =SUM($C$36:D36) -> ₺257,486.00 | E37: =SUM($C$36:E36) -> ₺383,051.00 | F37: =SUM($C$36:F36) -> ₺520,445.00 | G37: =SUM($C$36:G36) -> ₺648,700.00 | H37: =SUM($C$36:H36) -> ₺782,939.00 | I37: =SUM($C$36:I36) -> ₺782,939.00 | J37: =SUM($C$36:J36) -> ₺782,939.00 | K37: =SUM($C$36:K36) -> ₺782,939.00 | L37: =SUM($C$36:L36) -> ₺782,939.00 | M37: =SUM($C$36:M36) -> ₺782,939.00 | N37: =SUM($C$36:N36) -> ₺782,939.00

Sheet GİDER VARYANSLARI
B2: ='PLANLANAN GİDERLER'!B2:D3 -> Şirket Adı | K2: =worksheet_title -> Ayrıntılı Gider Tahminleri
K3: Gölgeli hücreler hesaplamalardır.
B4: GİDER VARYANSLARI | C4: OCA | D4: ŞUB | E4: MAR | F4: NİS | G4: MAY | H4: HAZ | I4: TEM | J4: AĞU | K4: EYL | L4: EKİ | M4: KAS | N4: ARA | O4: YIL
B5: Çalışan Maliyetleri | C5: Oca | D5: Şub | E5: Mar | F5: Nis | G5: May | H5: Haz | I5: Tem | J5: Ağu | K5: Eyl | L5: Eki | M5: Kas | N5: Ara | O5: YIL
B6: Maaşlar | C6: =INDEX(ÇalışanPlan[],MATCH(INDEX(EmployeeVariances[],ROW()-ROW(EmployeeVariances[[#Headers],[Oca]]),1),INDEX(ÇalışanPlan[],,1),0),MATCH(EmployeeVariances[[#Headers],[Oca]],ÇalışanPlan[#Headers],0))-INDEX(EmployeeActual[],MATCH(INDEX(EmployeeVariances[],ROW()-ROW(EmployeeVariances[[#Headers],[Oca]]),1),INDEX(ÇalışanPlan[],,1),0),MATCH(EmployeeVariances[[#Headers],[Oca]],EmployeeActual[#Headers],0)) -> ₺0.00 | D6: =INDEX(ÇalışanPlan[],MATCH(INDEX(EmployeeVariances[],ROW()-ROW(EmployeeVariances[[#Headers],[Şub]]),1),INDEX(ÇalışanPlan[],,1),0),MATCH(EmployeeVariances[[#Headers],[Şub]],ÇalışanPlan[#Headers],0))-INDEX(EmployeeActual[],MATCH(INDEX(EmployeeVariances[],ROW()-ROW(EmployeeVariances[[#Headers],[Şub]]),1),INDEX(ÇalışanPlan[],,1),0),MATCH(EmployeeVariances[[#Headers],[Şub]],EmployeeActual[#Headers],0)) -> ₺0.00 | E6: =INDEX(ÇalışanPlan[],MATCH(INDEX(EmployeeVariances[],ROW()-ROW(EmployeeVariances[[#Headers],[Mar]]),1),INDEX(ÇalışanPlan[],,1),0),MATCH(EmployeeVariances[[#Headers],[Mar]],ÇalışanPlan[#Headers],0))-INDEX(EmployeeActual[],MATCH(INDEX(EmployeeVariances[],ROW()-ROW(EmployeeVariances[[#Headers],[Mar]]),1),INDEX(ÇalışanPlan[],,1),0),MATCH(EmployeeVariances[[#Headers],[Mar]],EmployeeActual[#Headers],0)) -> ₺0.00 | F6: =INDEX(ÇalışanPlan[],MATCH(INDEX(EmployeeVariances[],ROW()-ROW(EmployeeVariances[[#Headers],[Nis]]),1),INDEX(ÇalışanPlan[],,1),0),MATCH(EmployeeVariances[[#Headers],[Nis]],ÇalışanPlan[#Headers],0))-INDEX(EmployeeActual[],MATCH(INDEX(EmployeeVariances[],ROW()-ROW(EmployeeVariances[[#Headers],[Nis]]),1),INDEX(ÇalışanPlan[],,1),0),MATCH(EmployeeVariances[[#Headers],[Nis]],EmployeeActual[#Headers],0)) -> -₺500.00 | G6: =INDEX(ÇalışanPlan[],MATCH(INDEX(EmployeeVariances[],ROW()-ROW(EmployeeVariances[[#Headers],[May]]),1),INDEX(ÇalışanPlan[],,1),0),MATCH(EmployeeVariances[[#Headers],[May]],ÇalışanPlan[#Headers],0))-INDEX(EmployeeActual[],MATCH(INDEX(EmployeeVariances[],ROW()-ROW(EmployeeVariances[[#Headers],[May]]),1),INDEX(ÇalışanPlan[],,1),0),MATCH(EmployeeVariances[[#Headers],[May]],EmployeeActual[#Headers],0)) -> -₺500.00 | H6: =INDEX(ÇalışanPlan[],MATCH(INDEX(EmployeeVariances[],ROW()-ROW(EmployeeVariances[[#Headers],[Haz]]),1),INDEX(ÇalışanPlan[],,1),0),MATCH(EmployeeVariances[[#Headers],[Haz]],ÇalışanPlan[#Headers],0))-INDEX(EmployeeActual[],MATCH(INDEX(EmployeeVariances[],ROW()-ROW(EmployeeVariances[[#Headers],[Haz]]),1),INDEX(ÇalışanPlan[],,1),0),MATCH(EmployeeVariances[[#Headers],[Haz]],EmployeeActual[#Headers],0)) -> -₺500.00 | I6: =INDEX(ÇalışanPlan[],MATCH(INDEX(EmployeeVariances[],ROW()-ROW(EmployeeVariances[[#Headers],[Tem]]),1),INDEX(ÇalışanPlan[],,1),0),MATCH(EmployeeVariances[[#Headers],[Tem]],ÇalışanPlan[#Headers],0))-INDEX(EmployeeActual[],MATCH(INDEX(EmployeeVariances[],ROW()-ROW(EmployeeVariances[[#Headers],[Tem]]),1),INDEX(ÇalışanPlan[],,1),0),MATCH(EmployeeVariances[[#Headers],[Tem]],EmployeeActual[#Headers],0)) -> ₺87,500.00 | J6: =INDEX(ÇalışanPlan[],MATCH(INDEX(EmployeeVariances[],ROW()-ROW(EmployeeVariances[[#Headers],[Ağu]]),1),INDEX(ÇalışanPlan[],,1),0),MATCH(EmployeeVariances[[#Headers],[Ağu]],ÇalışanPlan[#Headers],0))-INDEX(EmployeeActual[],MATCH(INDEX(EmployeeVariances[],ROW()-ROW(EmployeeVariances[[#Headers],[Ağu]]),1),INDEX(ÇalışanPlan[],,1),0),MATCH(EmployeeVariances[[#Headers],[Ağu]],EmployeeActual[#Headers],0)) -> ₺92,400.00 | K6: =INDEX(ÇalışanPlan[],MATCH(INDEX(EmployeeVariances[],ROW()-ROW(EmployeeVariances[[#Headers],[Eyl]]),1),INDEX(ÇalışanPlan[],,1),0),MATCH(EmployeeVariances[[#Headers],[Eyl]],ÇalışanPlan[#Headers],0))-INDEX(EmployeeActual[],MATCH(INDEX(EmployeeVariances[],ROW()-ROW(EmployeeVariances[[#Headers],[Eyl]]),1),INDEX(ÇalışanPlan[],,1),0),MATCH(EmployeeVariances[[#Headers],[Eyl]],EmployeeActual[#Headers],0)) -> ₺92,400.00 | L6: =INDEX(ÇalışanPlan[],MATCH(INDEX(EmployeeVariances[],ROW()-ROW(EmployeeVariances[[#Headers],[Eki]]),1),INDEX(ÇalışanPlan[],,1),0),MATCH(EmployeeVariances[[#Headers],[Eki]],ÇalışanPlan[#Headers],0))-INDEX(EmployeeActual[],MATCH(INDEX(EmployeeVariances[],ROW()-ROW(EmployeeVariances[[#Headers],[Eki]]),1),INDEX(ÇalışanPlan[],,1),0),MATCH(EmployeeVariances[[#Headers],[Eki]],EmployeeActual[#Headers],0)) -> ₺92,400.00 | M6: =INDEX(ÇalışanPlan[],MATCH(INDEX(EmployeeVariances[],ROW()-ROW(EmployeeVariances[[#Headers],[Kas]]),1),INDEX(ÇalışanPlan[],,1),0),MATCH(EmployeeVariances[[#Headers],[Kas]],ÇalışanPlan[#Headers],0))-INDEX(EmployeeActual[],MATCH(INDEX(EmployeeVariances[],ROW()-ROW(EmployeeVariances[[#Headers],[Kas]]),1),INDEX(ÇalışanPlan[],,1),0),MATCH(EmployeeVariances[[#Headers],[Kas]],EmployeeActual[#Headers],0)) -> ₺92,400.00 | N6: =INDEX(ÇalışanPlan[],MATCH(INDEX(EmployeeVariances[],ROW()-ROW(EmployeeVariances[[#Headers],[Ara]]),1),INDEX(ÇalışanPlan[],,1),0),MATCH(EmployeeVariances[[#Headers],[Ara]],ÇalışanPlan[#Headers],0))-INDEX(EmployeeActual[],MATCH(INDEX(EmployeeVariances[],ROW()-ROW(EmployeeVariances[[#Headers],[Ara]]),1),INDEX(ÇalışanPlan[],,1),0),MATCH(EmployeeVariances[[#Headers],[Ara]],EmployeeActual[#Headers],0)) -> ₺92,400.00 | O6: =SUM(EmployeeVariances[[#This Row],[Oca]:[Ara]]) -> ₺548,000.00
B7: Kazançlar | C7: =INDEX(ÇalışanPlan[],MATCH(INDEX(EmployeeVariances[],ROW()-ROW(EmployeeVariances[[#Headers],[Oca]]),1),INDEX(ÇalışanPlan[],,1),0),MATCH(EmployeeVariances[[#Headers],[Oca]],ÇalışanPlan[#Headers],0))-INDEX(EmployeeActual[],MATCH(INDEX(EmployeeVariances[],ROW()-ROW(EmployeeVariances[[#Headers],[Oca]]),1),INDEX(ÇalışanPlan[],,1),0),MATCH(EmployeeVariances[[#Headers],[Oca]],EmployeeActual[#Headers],0)) -> ₺0.00 | D7: =INDEX(ÇalışanPlan[],MATCH(INDEX(EmployeeVariances[],ROW()-ROW(EmployeeVariances[[#Headers],[Şub]]),1),INDEX(ÇalışanPlan[],,1),0),MATCH(EmployeeVariances[[#Headers],[Şub]],ÇalışanPlan[#Headers],0))-INDEX(EmployeeActual[],MATCH(INDEX(EmployeeVariances[],ROW()-ROW(EmployeeVariances[[#Headers],[Şub]]),1),INDEX(ÇalışanPlan[],,1),0),MATCH(EmployeeVariances[[#Headers],[Şub]],EmployeeActual[#Headers],0)) -> ₺0.00 | E7: =INDEX(ÇalışanPlan[],MATCH(INDEX(EmployeeVariances[],ROW()-ROW(EmployeeVariances[[#Headers],[Mar]]),1),INDEX(ÇalışanPlan[],,1),0),MATCH(EmployeeVariances[[#Headers],[Mar]],ÇalışanPlan[#Headers],0))-INDEX(EmployeeActual[],MATCH(INDEX(EmployeeVariances[],ROW()-ROW(EmployeeVariances[[#Headers],[Mar]]),1),INDEX(ÇalışanPlan[],,1),0),MATCH(EmployeeVariances[[#Headers],[Mar]],EmployeeActual[#Headers],0)) -> ₺0.00 | F7: =INDEX(ÇalışanPlan[],MATCH(INDEX(EmployeeVariances[],ROW()-ROW(EmployeeVariances[[#Headers],[Nis]]),1),INDEX(ÇalışanPlan[],,1),0),MATCH(EmployeeVariances[[#Headers],[Nis]],ÇalışanPlan[#Headers],0))-INDEX(EmployeeActual[],MATCH(INDEX(EmployeeVariances[],ROW()-ROW(EmployeeVariances[[#Headers],[Nis]]),1),INDEX(ÇalışanPlan[],,1),0),MATCH(EmployeeVariances[[#Headers],[Nis]],EmployeeActual[#Headers],0)) -> -₺135.00 | G7: =INDEX(ÇalışanPlan[],MATCH(INDEX(EmployeeVariances[],ROW()-ROW(EmployeeVariances[[#Headers],[May]]),1),INDEX(ÇalışanPlan[],,1),0),MATCH(EmployeeVariances[[#Headers],[May]],ÇalışanPlan[#Headers],0))-INDEX(EmployeeActual[],MATCH(INDEX(EmployeeVariances[],ROW()-ROW(EmployeeVariances[[#Headers],[May]]),1),INDEX(ÇalışanPlan[],,1),0),MATCH(EmployeeVariances[[#Headers],[May]],EmployeeActual[#Headers],0)) -> -₺135.00 | H7: =INDEX(ÇalışanPlan[],MATCH(INDEX(EmployeeVariances[],ROW()-ROW(EmployeeVariances[[#Headers],[Haz]]),1),INDEX(ÇalışanPlan[],,1),0),MATCH(EmployeeVariances[[#Headers],[Haz]],ÇalışanPlan[#Headers],0))-INDEX(EmployeeActual[],MATCH(INDEX(EmployeeVariances[],ROW()-ROW(EmployeeVariances[[#Headers],[Haz]]),1),INDEX(ÇalışanPlan[],,1),0),MATCH(EmployeeVariances[[#Headers],[Haz]],EmployeeActual[#Headers],0)) -> -₺135.00 | I7: =INDEX(ÇalışanPlan[],MATCH(INDEX(EmployeeVariances[],ROW()-ROW(EmployeeVariances[[#Headers],[Tem]]),1),INDEX(ÇalışanPlan[],,1),0),MATCH(EmployeeVariances[[#Headers],[Tem]],ÇalışanPlan[#Headers],0))-INDEX(EmployeeActual[],MATCH(INDEX(EmployeeVariances[],ROW()-ROW(EmployeeVariances[[#Headers],[Tem]]),1),INDEX(ÇalışanPlan[],,1),0),MATCH(EmployeeVariances[[#Headers],[Tem]],EmployeeActual[#Headers],0)) -> ₺23,625.00 | J7: =INDEX(ÇalışanPlan[],MATCH(INDEX(EmployeeVariances[],ROW()-ROW(EmployeeVariances[[#Headers],[Ağu]]),1),INDEX(ÇalışanPlan[],,1),0),MATCH(EmployeeVariances[[#Headers],[Ağu]],ÇalışanPlan[#Headers],0))-INDEX(EmployeeActual[],MATCH(INDEX(EmployeeVariances[],ROW()-ROW(EmployeeVariances[[#Headers],[Ağu]]),1),INDEX(ÇalışanPlan[],,1),0),MATCH(EmployeeVariances[[#Headers],[Ağu]],EmployeeActual[#Headers],0)) -> ₺24,948.00 | K7: =INDEX(ÇalışanPlan[],MATCH(INDEX(EmployeeVariances[],ROW()-ROW(EmployeeVariances[[#Headers],[Eyl]]),1),INDEX(ÇalışanPlan[],,1),0),MATCH(EmployeeVariances[[#Headers],[Eyl]],ÇalışanPlan[#Headers],0))-INDEX(EmployeeActual[],MATCH(INDEX(EmployeeVariances[],ROW()-ROW(EmployeeVariances[[#Headers],[Eyl]]),1),INDEX(ÇalışanPlan[],,1),0),MATCH(EmployeeVariances[[#Headers],[Eyl]],EmployeeActual[#Headers],0)) -> ₺24,948.00 | L7: =INDEX(ÇalışanPlan[],MATCH(INDEX(EmployeeVariances[],ROW()-ROW(EmployeeVariances[[#Headers],[Eki]]),1),INDEX(ÇalışanPlan[],,1),0),MATCH(EmployeeVariances[[#Headers],[Eki]],ÇalışanPlan[#Headers],0))-INDEX(EmployeeActual[],MATCH(INDEX(EmployeeVariances[],ROW()-ROW(EmployeeVariances[[#Headers],[Eki]]),1),INDEX(ÇalışanPlan[],,1),0),MATCH(EmployeeVariances[[#Headers],[Eki]],EmployeeActual[#Headers],0)) -> ₺24,948.00 | M7: =INDEX(ÇalışanPlan[],MATCH(INDEX(EmployeeVariances[],ROW()-ROW(EmployeeVariances[[#Headers],[Kas]]),1),INDEX(ÇalışanPlan[],,1),0),MATCH(EmployeeVariances[[#Headers],[Kas]],ÇalışanPlan[#Headers],0))-INDEX(EmployeeActual[],MATCH(INDEX(EmployeeVariances[],ROW()-ROW(EmployeeVariances[[#Headers],[Kas]]),1),INDEX(ÇalışanPlan[],,1),0),MATCH(EmployeeVariances[[#Headers],[Kas]],EmployeeActual[#Headers],0)) -> ₺24,948.00 | N7: =INDEX(ÇalışanPlan[],MATCH(INDEX(EmployeeVariances[],ROW()-ROW(EmployeeVariances[[#Headers],[Ara]]),1),INDEX(ÇalışanPlan[],,1),0),MATCH(EmployeeVariances[[#Headers],[Ara]],ÇalışanPlan[#Headers],0))-INDEX(EmployeeActual[],MATCH(INDEX(EmployeeVariances[],ROW()-ROW(EmployeeVariances[[#Headers],[Ara]]),1),INDEX(ÇalışanPlan[],,1),0),MATCH(EmployeeVariances[[#Headers],[Ara]],EmployeeActual[#Headers],0)) -> ₺24,948.00 | O7: =SUM(EmployeeVariances[[#This Row],[Oca]:[Ara]]) -> ₺147,960.00
B8: Ara toplam | C8: =SUBTOTAL(109,EmployeeVariances[Oca]) -> ₺0.00 | D8: =SUBTOTAL(109,EmployeeVariances[Şub]) -> ₺0.00 | E8: =SUBTOTAL(109,EmployeeVariances[Mar]) -> ₺0.00 | F8: =SUBTOTAL(109,EmployeeVariances[Nis]) -> -₺635.00 | G8: =SUBTOTAL(109,EmployeeVariances[May]) -> -₺635.00 | H8: =SUBTOTAL(109,EmployeeVariances[Haz]) -> -₺635.00 | I8: =SUBTOTAL(109,EmployeeVariances[Tem]) -> ₺111,125.00 | J8: =SUBTOTAL(109,EmployeeVariances[Ağu]) -> ₺117,348.00 | K8: =SUBTOTAL(109,EmployeeVariances[Eyl]) -> ₺117,348.00 | L8: =SUBTOTAL(109,EmployeeVariances[Eki]) -> ₺117,348.00 | M8: =SUBTOTAL(109,EmployeeVariances[Kas]) -> ₺117,348.00 | N8: =SUBTOTAL(109,EmployeeVariances[Ara]) -> ₺117,348.00 | O8: =SUBTOTAL(109,EmployeeVariances[YIL]) -> ₺695,960.00
B10: Ofis Maliyetleri | C10: Oca | D10: Şub | E10: Mar | F10: Nis | G10: May | H10: Haz | I10: Tem | J10: Ağu | K10: Eyl | L10: Eki | M10: Kas | N10: Ara | O10: YIL
B11: Ofis kirası | C11: =INDEX(OfficePlan[],MATCH(INDEX(OfficeVariances[],ROW()-ROW(OfficeVariances[[#Headers],[Oca]]),1),INDEX(OfficePlan[],,1),0),MATCH(OfficeVariances[[#Headers],[Oca]],OfficePlan[#Headers],0))-INDEX(OfficeActual[],MATCH(INDEX(OfficeVariances[],ROW()-ROW(OfficeVariances[[#Headers],[Oca]]),1),INDEX(OfficePlan[],,1),0),MATCH(OfficeVariances[[#Headers],[Oca]],OfficeActual[#Headers],0)) -> ₺0.00 | D11: =INDEX(OfficePlan[],MATCH(INDEX(OfficeVariances[],ROW()-ROW(OfficeVariances[[#Headers],[Şub]]),1),INDEX(OfficePlan[],,1),0),MATCH(OfficeVariances[[#Headers],[Şub]],OfficePlan[#Headers],0))-INDEX(OfficeActual[],MATCH(INDEX(OfficeVariances[],ROW()-ROW(OfficeVariances[[#Headers],[Şub]]),1),INDEX(OfficePlan[],,1),0),MATCH(OfficeVariances[[#Headers],[Şub]],OfficeActual[#Headers],0)) -> ₺0.00 | E11: =INDEX(OfficePlan[],MATCH(INDEX(OfficeVariances[],ROW()-ROW(OfficeVariances[[#Headers],[Mar]]),1),INDEX(OfficePlan[],,1),0),MATCH(OfficeVariances[[#Headers],[Mar]],OfficePlan[#Headers],0))-INDEX(OfficeActual[],MATCH(INDEX(OfficeVariances[],ROW()-ROW(OfficeVariances[[#Headers],[Mar]]),1),INDEX(OfficePlan[],,1),0),MATCH(OfficeVariances[[#Headers],[Mar]],OfficeActual[#Headers],0)) -> ₺0.00 | F11: =INDEX(OfficePlan[],MATCH(INDEX(OfficeVariances[],ROW()-ROW(OfficeVariances[[#Headers],[Nis]]),1),INDEX(OfficePlan[],,1),0),MATCH(OfficeVariances[[#Headers],[Nis]],OfficePlan[#Headers],0))-INDEX(OfficeActual[],MATCH(INDEX(OfficeVariances[],ROW()-ROW(OfficeVariances[[#Headers],[Nis]]),1),INDEX(OfficePlan[],,1),0),MATCH(OfficeVariances[[#Headers],[Nis]],OfficeActual[#Headers],0)) -> ₺0.00 | G11: =INDEX(OfficePlan[],MATCH(INDEX(OfficeVariances[],ROW()-ROW(OfficeVariances[[#Headers],[May]]),1),INDEX(OfficePlan[],,1),0),MATCH(OfficeVariances[[#Headers],[May]],OfficePlan[#Headers],0))-INDEX(OfficeActual[],MATCH(INDEX(OfficeVariances[],ROW()-ROW(OfficeVariances[[#Headers],[May]]),1),INDEX(OfficePlan[],,1),0),MATCH(OfficeVariances[[#Headers],[May]],OfficeActual[#Headers],0)) -> ₺0.00 | H11: =INDEX(OfficePlan[],MATCH(INDEX(OfficeVariances[],ROW()-ROW(OfficeVariances[[#Headers],[Haz]]),1),INDEX(OfficePlan[],,1),0),MATCH(OfficeVariances[[#Headers],[Haz]],OfficePlan[#Headers],0))-INDEX(OfficeActual[],MATCH(INDEX(OfficeVariances[],ROW()-ROW(OfficeVariances[[#Headers],[Haz]]),1),INDEX(OfficePlan[],,1),0),MATCH(OfficeVariances[[#Headers],[Haz]],OfficeActual[#Headers],0)) -> ₺0.00 | I11: =INDEX(OfficePlan[],MATCH(INDEX(OfficeVariances[],ROW()-ROW(OfficeVariances[[#Headers],[Tem]]),1),INDEX(OfficePlan[],,1),0),MATCH(OfficeVariances[[#Headers],[Tem]],OfficePlan[#Headers],0))-INDEX(OfficeActual[],MATCH(INDEX(OfficeVariances[],ROW()-ROW(OfficeVariances[[#Headers],[Tem]]),1),INDEX(OfficePlan[],,1),0),MATCH(OfficeVariances[[#Headers],[Tem]],OfficeActual[#Headers],0)) -> ₺9,800.00 | J11: =INDEX(OfficePlan[],MATCH(INDEX(OfficeVariances[],ROW()-ROW(OfficeVariances[[#Headers],[Ağu]]),1),INDEX(OfficePlan[],,1),0),MATCH(OfficeVariances[[#Headers],[Ağu]],OfficePlan[#Headers],0))-INDEX(OfficeActual[],MATCH(INDEX(OfficeVariances[],ROW()-ROW(OfficeVariances[[#Headers],[Ağu]]),1),INDEX(OfficePlan[],,1),0),MATCH(OfficeVariances[[#Headers],[Ağu]],OfficeActual[#Headers],0)) -> ₺9,800.00 | K11: =INDEX(OfficePlan[],MATCH(INDEX(OfficeVariances[],ROW()-ROW(OfficeVariances[[#Headers],[Eyl]]),1),INDEX(OfficePlan[],,1),0),MATCH(OfficeVariances[[#Headers],[Eyl]],OfficePlan[#Headers],0))-INDEX(OfficeActual[],MATCH(INDEX(OfficeVariances[],ROW()-ROW(OfficeVariances[[#Headers],[Eyl]]),1),INDEX(OfficePlan[],,1),0),MATCH(OfficeVariances[[#Headers],[Eyl]],OfficeActual[#Headers],0)) -> ₺9,800.00 | L11: =INDEX(OfficePlan[],MATCH(INDEX(OfficeVariances[],ROW()-ROW(OfficeVariances[[#Headers],[Eki]]),1),INDEX(OfficePlan[],,1),0),MATCH(OfficeVariances[[#Headers],[Eki]],OfficePlan[#Headers],0))-INDEX(OfficeActual[],MATCH(INDEX(OfficeVariances[],ROW()-ROW(OfficeVariances[[#Headers],[Eki]]),1),INDEX(OfficePlan[],,1),0),MATCH(OfficeVariances[[#Headers],[Eki]],OfficeActual[#Headers],0)) -> ₺9,800.00 | M11: =INDEX(OfficePlan[],MATCH(INDEX(OfficeVariances[],ROW()-ROW(OfficeVariances[[#Headers],[Kas]]),1),INDEX(OfficePlan[],,1),0),MATCH(OfficeVariances[[#Headers],[Kas]],OfficePlan[#Headers],0))-INDEX(OfficeActual[],MATCH(INDEX(OfficeVariances[],ROW()-ROW(OfficeVariances[[#Headers],[Kas]]),1),INDEX(OfficePlan[],,1),0),MATCH(OfficeVariances[[#Headers],[Kas]],OfficeActual[#Headers],0)) -> ₺9,800.00 | N11: =INDEX(OfficePlan[],MATCH(INDEX(OfficeVariances[],ROW()-ROW(OfficeVariances[[#Headers],[Ara]]),1),INDEX(OfficePlan[],,1),0),MATCH(OfficeVariances[[#Headers],[Ara]],OfficePlan[#Headers],0))-INDEX(OfficeActual[],MATCH(INDEX(OfficeVariances[],ROW()-ROW(OfficeVariances[[#Headers],[Ara]]),1),INDEX(OfficePlan[],,1),0),MATCH(OfficeVariances[[#Headers],[Ara]],OfficeActual[#Headers],0)) -> ₺9,800.00 | O11: =SUM(OfficeVariances[[#This Row],[Oca]:[Ara]]) -> ₺58,800.00
B12: Doğalgaz | C12: =INDEX(OfficePlan[],MATCH(INDEX(OfficeVariances[],ROW()-ROW(OfficeVariances[[#Headers],[Oca]]),1),INDEX(OfficePlan[],,1),0),MATCH(OfficeVariances[[#Headers],[Oca]],OfficePlan[#Headers],0))-INDEX(OfficeActual[],MATCH(INDEX(OfficeVariances[],ROW()-ROW(OfficeVariances[[#Headers],[Oca]]),1),INDEX(OfficePlan[],,1),0),MATCH(OfficeVariances[[#Headers],[Oca]],OfficeActual[#Headers],0)) -> -₺4.00 | D12: =INDEX(OfficePlan[],MATCH(INDEX(OfficeVariances[],ROW()-ROW(OfficeVariances[[#Headers],[Şub]]),1),INDEX(OfficePlan[],,1),0),MATCH(OfficeVariances[[#Headers],[Şub]],OfficePlan[#Headers],0))-INDEX(OfficeActual[],MATCH(INDEX(OfficeVariances[],ROW()-ROW(OfficeVariances[[#Headers],[Şub]]),1),INDEX(OfficePlan[],,1),0),MATCH(OfficeVariances[[#Headers],[Şub]],OfficeActual[#Headers],0)) -> -₺30.00 | E12: =INDEX(OfficePlan[],MATCH(INDEX(OfficeVariances[],ROW()-ROW(OfficeVariances[[#Headers],[Mar]]),1),INDEX(OfficePlan[],,1),0),MATCH(OfficeVariances[[#Headers],[Mar]],OfficePlan[#Headers],0))-INDEX(OfficeActual[],MATCH(INDEX(OfficeVariances[],ROW()-ROW(OfficeVariances[[#Headers],[Mar]]),1),INDEX(OfficePlan[],,1),0),MATCH(OfficeVariances[[#Headers],[Mar]],OfficeActual[#Headers],0)) -> ₺15.00 | F12: =INDEX(OfficePlan[],MATCH(INDEX(OfficeVariances[],ROW()-ROW(OfficeVariances[[#Headers],[Nis]]),1),INDEX(OfficePlan[],,1),0),MATCH(OfficeVariances[[#Headers],[Nis]],OfficePlan[#Headers],0))-INDEX(OfficeActual[],MATCH(INDEX(OfficeVariances[],ROW()-ROW(OfficeVariances[[#Headers],[Nis]]),1),INDEX(OfficePlan[],,1),0),MATCH(OfficeVariances[[#Headers],[Nis]],OfficeActual[#Headers],0)) -> -₺130.00 | G12: =INDEX(OfficePlan[],MATCH(INDEX(OfficeVariances[],ROW()-ROW(OfficeVariances[[#Headers],[May]]),1),INDEX(OfficePlan[],,1),0),MATCH(OfficeVariances[[#Headers],[May]],OfficePlan[#Headers],0))-INDEX(OfficeActual[],MATCH(INDEX(OfficeVariances[],ROW()-ROW(OfficeVariances[[#Headers],[May]]),1),INDEX(OfficePlan[],,1),0),MATCH(OfficeVariances[[#Headers],[May]],OfficeActual[#Headers],0)) -> ₺13.00 | H12: =INDEX(OfficePlan[],MATCH(INDEX(OfficeVariances[],ROW()-ROW(OfficeVariances[[#Headers],[Haz]]),1),INDEX(OfficePlan[],,1),0),MATCH(OfficeVariances[[#Headers],[Haz]],OfficePlan[#Headers],0))-INDEX(OfficeActual[],MATCH(INDEX(OfficeVariances[],ROW()-ROW(OfficeVariances[[#Headers],[Haz]]),1),INDEX(OfficePlan[],,1),0),MATCH(OfficeVariances[[#Headers],[Haz]],OfficeActual[#Headers],0)) -> ₺12.00 | I12: =INDEX(OfficePlan[],MATCH(INDEX(OfficeVariances[],ROW()-ROW(OfficeVariances[[#Headers],[Tem]]),1),INDEX(OfficePlan[],,1),0),MATCH(OfficeVariances[[#Headers],[Tem]],OfficePlan[#Headers],0))-INDEX(OfficeActual[],MATCH(INDEX(OfficeVariances[],ROW()-ROW(OfficeVariances[[#Headers],[Tem]]),1),INDEX(OfficePlan[],,1),0),MATCH(OfficeVariances[[#Headers],[Tem]],OfficeActual[#Headers],0)) -> ₺100.00 | J12: =INDEX(OfficePlan[],MATCH(INDEX(OfficeVariances[],ROW()-ROW(OfficeVariances[[#Headers],[Ağu]]),1),INDEX(OfficePlan[],,1),0),MATCH(OfficeVariances[[#Headers],[Ağu]],OfficePlan[#Headers],0))-INDEX(OfficeActual[],MATCH(INDEX(OfficeVariances[],ROW()-ROW(OfficeVariances[[#Headers],[Ağu]]),1),INDEX(OfficePlan[],,1),0),MATCH(OfficeVariances[[#Headers],[Ağu]],OfficeActual[#Headers],0)) -> ₺100.00 | K12: =INDEX(OfficePlan[],MATCH(INDEX(OfficeVariances[],ROW()-ROW(OfficeVariances[[#Headers],[Eyl]]),1),INDEX(OfficePlan[],,1),0),MATCH(OfficeVariances[[#Headers],[Eyl]],OfficePlan[#Headers],0))-INDEX(OfficeActual[],MATCH(INDEX(OfficeVariances[],ROW()-ROW(OfficeVariances[[#Headers],[Eyl]]),1),INDEX(OfficePlan[],,1),0),MATCH(OfficeVariances[[#Headers],[Eyl]],OfficeActual[#Headers],0)) -> ₺100.00 | L12: =INDEX(OfficePlan[],MATCH(INDEX(OfficeVariances[],ROW()-ROW(OfficeVariances[[#Headers],[Eki]]),1),INDEX(OfficePlan[],,1),0),MATCH(OfficeVariances[[#Headers],[Eki]],OfficePlan[#Headers],0))-INDEX(OfficeActual[],MATCH(INDEX(OfficeVariances[],ROW()-ROW(OfficeVariances[[#Headers],[Eki]]),1),INDEX(OfficePlan[],,1),0),MATCH(OfficeVariances[[#Headers],[Eki]],OfficeActual[#Headers],0)) -> ₺100.00 | M12: =INDEX(OfficePlan[],MATCH(INDEX(OfficeVariances[],ROW()-ROW(OfficeVariances[[#Headers],[Kas]]),1),INDEX(OfficePlan[],,1),0),MATCH(OfficeVariances[[#Headers],[Kas]],OfficePlan[#Headers],0))-INDEX(OfficeActual[],MATCH(INDEX(OfficeVariances[],ROW()-ROW(OfficeVariances[[#Headers],[Kas]]),1),INDEX(OfficePlan[],,1),0),MATCH(OfficeVariances[[#Headers],[Kas]],OfficeActual[#Headers],0)) -> ₺400.00 | N12: =INDEX(OfficePlan[],MATCH(INDEX(OfficeVariances[],ROW()-ROW(OfficeVariances[[#Headers],[Ara]]),1),INDEX(OfficePlan[],,1),0),MATCH(OfficeVariances[[#Headers],[Ara]],OfficePlan[#Headers],0))-INDEX(OfficeActual[],MATCH(INDEX(OfficeVariances[],ROW()-ROW(OfficeVariances[[#Headers],[Ara]]),1),INDEX(OfficePlan[],,1),0),MATCH(OfficeVariances[[#Headers],[Ara]],OfficeActual[#Headers],0)) -> ₺400.00 | O12: =SUM(OfficeVariances[[#This Row],[Oca]:[Ara]]) -> ₺1,076.00
B13: Elektrik | C13: =INDEX(OfficePlan[],MATCH(INDEX(OfficeVariances[],ROW()-ROW(OfficeVariances[[#Headers],[Oca]]),1),INDEX(OfficePlan[],,1),0),MATCH(OfficeVariances[[#Headers],[Oca]],OfficePlan[#Headers],0))-INDEX(OfficeActual[],MATCH(INDEX(OfficeVariances[],ROW()-ROW(OfficeVariances[[#Headers],[Oca]]),1),INDEX(OfficePlan[],,1),0),MATCH(OfficeVariances[[#Headers],[Oca]],OfficeActual[#Headers],0)) -> ₺12.00 | D13: =INDEX(OfficePlan[],MATCH(INDEX(OfficeVariances[],ROW()-ROW(OfficeVariances[[#Headers],[Şub]]),1),INDEX(OfficePlan[],,1),0),MATCH(OfficeVariances[[#Headers],[Şub]],OfficePlan[#Headers],0))-INDEX(OfficeActual[],MATCH(INDEX(OfficeVariances[],ROW()-ROW(OfficeVariances[[#Headers],[Şub]]),1),INDEX(OfficePlan[],,1),0),MATCH(OfficeVariances[[#Headers],[Şub]],OfficeActual[#Headers],0)) -> ₺22.00 | E13: =INDEX(OfficePlan[],MATCH(INDEX(OfficeVariances[],ROW()-ROW(OfficeVariances[[#Headers],[Mar]]),1),INDEX(OfficePlan[],,1),0),MATCH(OfficeVariances[[#Headers],[Mar]],OfficePlan[#Headers],0))-INDEX(OfficeActual[],MATCH(INDEX(OfficeVariances[],ROW()-ROW(OfficeVariances[[#Headers],[Mar]]),1),INDEX(OfficePlan[],,1),0),MATCH(OfficeVariances[[#Headers],[Mar]],OfficeActual[#Headers],0)) -> ₺32.00 | F13: =INDEX(OfficePlan[],MATCH(INDEX(OfficeVariances[],ROW()-ROW(OfficeVariances[[#Headers],[Nis]]),1),INDEX(OfficePlan[],,1),0),MATCH(OfficeVariances[[#Headers],[Nis]],OfficePlan[#Headers],0))-INDEX(OfficeActual[],MATCH(INDEX(OfficeVariances[],ROW()-ROW(OfficeVariances[[#Headers],[Nis]]),1),INDEX(OfficePlan[],,1),0),MATCH(OfficeVariances[[#Headers],[Nis]],OfficeActual[#Headers],0)) -> ₺1.00 | G13: =INDEX(OfficePlan[],MATCH(INDEX(OfficeVariances[],ROW()-ROW(OfficeVariances[[#Headers],[May]]),1),INDEX(OfficePlan[],,1),0),MATCH(OfficeVariances[[#Headers],[May]],OfficePlan[#Headers],0))-INDEX(OfficeActual[],MATCH(INDEX(OfficeVariances[],ROW()-ROW(OfficeVariances[[#Headers],[May]]),1),INDEX(OfficePlan[],,1),0),MATCH(OfficeVariances[[#Headers],[May]],OfficeActual[#Headers],0)) -> -₺6.00 | H13: =INDEX(OfficePlan[],MATCH(INDEX(OfficeVariances[],ROW()-ROW(OfficeVariances[[#Headers],[Haz]]),1),INDEX(OfficePlan[],,1),0),MATCH(OfficeVariances[[#Headers],[Haz]],OfficePlan[#Headers],0))-INDEX(OfficeActual[],MATCH(INDEX(OfficeVariances[],ROW()-ROW(OfficeVariances[[#Headers],[Haz]]),1),INDEX(OfficePlan[],,1),0),MATCH(OfficeVariances[[#Headers],[Haz]],OfficeActual[#Headers],0)) -> ₺10.00 | I13: =INDEX(OfficePlan[],MATCH(INDEX(OfficeVariances[],ROW()-ROW(OfficeVariances[[#Headers],[Tem]]),1),INDEX(OfficePlan[],,1),0),MATCH(OfficeVariances[[#Headers],[Tem]],OfficePlan[#Headers],0))-INDEX(OfficeActual[],MATCH(INDEX(OfficeVariances[],ROW()-ROW(OfficeVariances[[#Headers],[Tem]]),1),INDEX(OfficePlan[],,1),0),MATCH(OfficeVariances[[#Headers],[Tem]],OfficeActual[#Headers],0)) -> ₺300.00 | J13: =INDEX(OfficePlan[],MATCH(INDEX(OfficeVariances[],ROW()-ROW(OfficeVariances[[#Headers],[Ağu]]),1),INDEX(OfficePlan[],,1),0),MATCH(OfficeVariances[[#Headers],[Ağu]],OfficePlan[#Headers],0))-INDEX(OfficeActual[],MATCH(INDEX(OfficeVariances[],ROW()-ROW(OfficeVariances[[#Headers],[Ağu]]),1),INDEX(OfficePlan[],,1),0),MATCH(OfficeVariances[[#Headers],[Ağu]],OfficeActual[#Headers],0)) -> ₺300.00 | K13: =INDEX(OfficePlan[],MATCH(INDEX(OfficeVariances[],ROW()-ROW(OfficeVariances[[#Headers],[Eyl]]),1),INDEX(OfficePlan[],,1),0),MATCH(OfficeVariances[[#Headers],[Eyl]],OfficePlan[#Headers],0))-INDEX(OfficeActual[],MATCH(INDEX(OfficeVariances[],ROW()-ROW(OfficeVariances[[#Headers],[Eyl]]),1),INDEX(OfficePlan[],,1),0),MATCH(OfficeVariances[[#Headers],[Eyl]],OfficeActual[#Headers],0)) -> ₺300.00 | L13: =INDEX(OfficePlan[],MATCH(INDEX(OfficeVariances[],ROW()-ROW(OfficeVariances[[#Headers],[Eki]]),1),INDEX(OfficePlan[],,1),0),MATCH(OfficeVariances[[#Headers],[Eki]],OfficePlan[#Headers],0))-INDEX(OfficeActual[],MATCH(INDEX(OfficeVariances[],ROW()-ROW(OfficeVariances[[#Headers],[Eki]]),1),INDEX(OfficePlan[],,1),0),MATCH(OfficeVariances[[#Headers],[Eki]],OfficeActual[#Headers],0)) -> ₺300.00 | M13: =INDEX(OfficePlan[],MATCH(INDEX(OfficeVariances[],ROW()-ROW(OfficeVariances[[#Headers],[Kas]]),1),INDEX(OfficePlan[],,1),0),MATCH(OfficeVariances[[#Headers],[Kas]],OfficePlan[#Headers],0))-INDEX(OfficeActual[],MATCH(INDEX(OfficeVariances[],ROW()-ROW(OfficeVariances[[#Headers],[Kas]]),1),INDEX(OfficePlan[],,1),0),MATCH(OfficeVariances[[#Headers],[Kas]],OfficeActual[#Headers],0)) -> ₺300.00 | N13: =INDEX(OfficePlan[],MATCH(INDEX(OfficeVariances[],ROW()-ROW(OfficeVariances[[#Headers],[Ara]]),1),INDEX(OfficePlan[],,1),0),MATCH(OfficeVariances[[#Headers],[Ara]],OfficePlan[#Headers],0))-INDEX(OfficeActual[],MATCH(INDEX(OfficeVariances[],ROW()-ROW(OfficeVariances[[#Headers],[Ara]]),1),INDEX(OfficePlan[],,1),0),MATCH(OfficeVariances[[#Headers],[Ara]],OfficeActual[#Headers],0)) -> ₺300.00 | O13: =SUM(OfficeVariances[[#This Row],[Oca]:[Ara]]) -> ₺1,871.00
B14: Su | C14: =INDEX(OfficePlan[],MATCH(INDEX(OfficeVariances[],ROW()-ROW(OfficeVariances[[#Headers],[Oca]]),1),INDEX(OfficePlan[],,1),0),MATCH(OfficeVariances[[#Headers],[Oca]],OfficePlan[#Headers],0))-INDEX(OfficeActual[],MATCH(INDEX(OfficeVariances[],ROW()-ROW(OfficeVariances[[#Headers],[Oca]]),1),INDEX(OfficePlan[],,1),0),MATCH(OfficeVariances[[#Headers],[Oca]],OfficeActual[#Headers],0)) -> ₺5.00 | D14: =INDEX(OfficePlan[],MATCH(INDEX(OfficeVariances[],ROW()-ROW(OfficeVariances[[#Headers],[Şub]]),1),INDEX(OfficePlan[],,1),0),MATCH(OfficeVariances[[#Headers],[Şub]],OfficePlan[#Headers],0))-INDEX(OfficeActual[],MATCH(INDEX(OfficeVariances[],ROW()-ROW(OfficeVariances[[#Headers],[Şub]]),1),INDEX(OfficePlan[],,1),0),MATCH(OfficeVariances[[#Headers],[Şub]],OfficeActual[#Headers],0)) -> ₺7.00 | E14: =INDEX(OfficePlan[],MATCH(INDEX(OfficeVariances[],ROW()-ROW(OfficeVariances[[#Headers],[Mar]]),1),INDEX(OfficePlan[],,1),0),MATCH(OfficeVariances[[#Headers],[Mar]],OfficePlan[#Headers],0))-INDEX(OfficeActual[],MATCH(INDEX(OfficeVariances[],ROW()-ROW(OfficeVariances[[#Headers],[Mar]]),1),INDEX(OfficePlan[],,1),0),MATCH(OfficeVariances[[#Headers],[Mar]],OfficeActual[#Headers],0)) -> ₺6.00 | F14: =INDEX(OfficePlan[],MATCH(INDEX(OfficeVariances[],ROW()-ROW(OfficeVariances[[#Headers],[Nis]]),1),INDEX(OfficePlan[],,1),0),MATCH(OfficeVariances[[#Headers],[Nis]],OfficePlan[#Headers],0))-INDEX(OfficeActual[],MATCH(INDEX(OfficeVariances[],ROW()-ROW(OfficeVariances[[#Headers],[Nis]]),1),INDEX(OfficePlan[],,1),0),MATCH(OfficeVariances[[#Headers],[Nis]],OfficeActual[#Headers],0)) -> ₺4.00 | G14: =INDEX(OfficePlan[],MATCH(INDEX(OfficeVariances[],ROW()-ROW(OfficeVariances[[#Headers],[May]]),1),INDEX(OfficePlan[],,1),0),MATCH(OfficeVariances[[#Headers],[May]],OfficePlan[#Headers],0))-INDEX(OfficeActual[],MATCH(INDEX(OfficeVariances[],ROW()-ROW(OfficeVariances[[#Headers],[May]]),1),INDEX(OfficePlan[],,1),0),MATCH(OfficeVariances[[#Headers],[May]],OfficeActual[#Headers],0)) -> ₺6.00 | H14: =INDEX(OfficePlan[],MATCH(INDEX(OfficeVariances[],ROW()-ROW(OfficeVariances[[#Headers],[Haz]]),1),INDEX(OfficePlan[],,1),0),MATCH(OfficeVariances[[#Headers],[Haz]],OfficePlan[#Headers],0))-INDEX(OfficeActual[],MATCH(INDEX(OfficeVariances[],ROW()-ROW(OfficeVariances[[#Headers],[Haz]]),1),INDEX(OfficePlan[],,1),0),MATCH(OfficeVariances[[#Headers],[Haz]],OfficeActual[#Headers],0)) -> ₺4.00 | I14: =INDEX(OfficePlan[],MATCH(INDEX(OfficeVariances[],ROW()-ROW(OfficeVariances[[#Headers],[Tem]]),1),INDEX(OfficePlan[],,1),0),MATCH(OfficeVariances[[#Headers],[Tem]],OfficePlan[#Headers],0))-INDEX(OfficeActual[],MATCH(INDEX(OfficeVariances[],ROW()-ROW(OfficeVariances[[#Headers],[Tem]]),1),INDEX(OfficePlan[],,1),0),MATCH(OfficeVariances[[#Headers],[Tem]],OfficeActual[#Headers],0)) -> ₺40.00 | J14: =INDEX(OfficePlan[],MATCH(INDEX(OfficeVariances[],ROW()-ROW(OfficeVariances[[#Headers],[Ağu]]),1),INDEX(OfficePlan[],,1),0),MATCH(OfficeVariances[[#Headers],[Ağu]],OfficePlan[#Headers],0))-INDEX(OfficeActual[],MATCH(INDEX(OfficeVariances[],ROW()-ROW(OfficeVariances[[#Headers],[Ağu]]),1),INDEX(OfficePlan[],,1),0),MATCH(OfficeVariances[[#Headers],[Ağu]],OfficeActual[#Headers],0)) -> ₺40.00 | K14: =INDEX(OfficePlan[],MATCH(INDEX(OfficeVariances[],ROW()-ROW(OfficeVariances[[#Headers],[Eyl]]),1),INDEX(OfficePlan[],,1),0),MATCH(OfficeVariances[[#Headers],[Eyl]],OfficePlan[#Headers],0))-INDEX(OfficeActual[],MATCH(INDEX(OfficeVariances[],ROW()-ROW(OfficeVariances[[#Headers],[Eyl]]),1),INDEX(OfficePlan[],,1),0),MATCH(OfficeVariances[[#Headers],[Eyl]],OfficeActual[#Headers],0)) -> ₺40.00 | L14: =INDEX(OfficePlan[],MATCH(INDEX(OfficeVariances[],ROW()-ROW(OfficeVariances[[#Headers],[Eki]]),1),INDEX(OfficePlan[],,1),0),MATCH(OfficeVariances[[#Headers],[Eki]],OfficePlan[#Headers],0))-INDEX(OfficeActual[],MATCH(INDEX(OfficeVariances[],ROW()-ROW(OfficeVariances[[#Headers],[Eki]]),1),INDEX(OfficePlan[],,1),0),MATCH(OfficeVariances[[#Headers],[Eki]],OfficeActual[#Headers],0)) -> ₺40.00 | M14: =INDEX(OfficePlan[],MATCH(INDEX(OfficeVariances[],ROW()-ROW(OfficeVariances[[#Headers],[Kas]]),1),INDEX(OfficePlan[],,1),0),MATCH(OfficeVariances[[#Headers],[Kas]],OfficePlan[#Headers],0))-INDEX(OfficeActual[],MATCH(INDEX(OfficeVariances[],ROW()-ROW(OfficeVariances[[#Headers],[Kas]]),1),INDEX(OfficePlan[],,1),0),MATCH(OfficeVariances[[#Headers],[Kas]],OfficeActual[#Headers],0)) -> ₺40.00 | N14: =INDEX(OfficePlan[],MATCH(INDEX(OfficeVariances[],ROW()-ROW(OfficeVariances[[#Headers],[Ara]]),1),INDEX(OfficePlan[],,1),0),MATCH(OfficeVariances[[#Headers],[Ara]],OfficePlan[#Headers],0))-INDEX(OfficeActual[],MATCH(INDEX(OfficeVariances[],ROW()-ROW(OfficeVariances[[#Headers],[Ara]]),1),INDEX(OfficePlan[],,1),0),MATCH(OfficeVariances[[#Headers],[Ara]],OfficeActual[#Headers],0)) -> ₺40.00 | O14: =SUM(OfficeVariances[[#This Row],[Oca]:[Ara]]) -> ₺272.00
B15: Telefon | C15: =INDEX(OfficePlan[],MATCH(INDEX(OfficeVariances[],ROW()-ROW(OfficeVariances[[#Headers],[Oca]]),1),INDEX(OfficePlan[],,1),0),MATCH(OfficeVariances[[#Headers],[Oca]],OfficePlan[#Headers],0))-INDEX(OfficeActual[],MATCH(INDEX(OfficeVariances[],ROW()-ROW(OfficeVariances[[#Headers],[Oca]]),1),INDEX(OfficePlan[],,1),0),MATCH(OfficeVariances[[#Headers],[Oca]],OfficeActual[#Headers],0)) -> ₺26.00 | D15: =INDEX(OfficePlan[],MATCH(INDEX(OfficeVariances[],ROW()-ROW(OfficeVariances[[#Headers],[Şub]]),1),INDEX(OfficePlan[],,1),0),MATCH(OfficeVariances[[#Headers],[Şub]],OfficePlan[#Headers],0))-INDEX(OfficeActual[],MATCH(INDEX(OfficeVariances[],ROW()-ROW(OfficeVariances[[#Headers],[Şub]]),1),INDEX(OfficePlan[],,1),0),MATCH(OfficeVariances[[#Headers],[Şub]],OfficeActual[#Headers],0)) -> ₺15.00 | E15: =INDEX(OfficePlan[],MATCH(INDEX(OfficeVariances[],ROW()-ROW(OfficeVariances[[#Headers],[Mar]]),1),INDEX(OfficePlan[],,1),0),MATCH(OfficeVariances[[#Headers],[Mar]],OfficePlan[#Headers],0))-INDEX(OfficeActual[],MATCH(INDEX(OfficeVariances[],ROW()-ROW(OfficeVariances[[#Headers],[Mar]]),1),INDEX(OfficePlan[],,1),0),MATCH(OfficeVariances[[#Headers],[Mar]],OfficeActual[#Headers],0)) -> -₺15.00 | F15: =INDEX(OfficePlan[],MATCH(INDEX(OfficeVariances[],ROW()-ROW(OfficeVariances[[#Headers],[Nis]]),1),INDEX(OfficePlan[],,1),0),MATCH(OfficeVariances[[#Headers],[Nis]],OfficePlan[#Headers],0))-INDEX(OfficeActual[],MATCH(INDEX(OfficeVariances[],ROW()-ROW(OfficeVariances[[#Headers],[Nis]]),1),INDEX(OfficePlan[],,1),0),MATCH(OfficeVariances[[#Headers],[Nis]],OfficeActual[#Headers],0)) -> ₺5.00 | G15: =INDEX(OfficePlan[],MATCH(INDEX(OfficeVariances[],ROW()-ROW(OfficeVariances[[#Headers],[May]]),1),INDEX(OfficePlan[],,1),0),MATCH(OfficeVariances[[#Headers],[May]],OfficePlan[#Headers],0))-INDEX(OfficeActual[],MATCH(INDEX(OfficeVariances[],ROW()-ROW(OfficeVariances[[#Headers],[May]]),1),INDEX(OfficePlan[],,1),0),MATCH(OfficeVariances[[#Headers],[May]],OfficeActual[#Headers],0)) -> ₺5.00 | H15: =INDEX(OfficePlan[],MATCH(INDEX(OfficeVariances[],ROW()-ROW(OfficeVariances[[#Headers],[Haz]]),1),INDEX(OfficePlan[],,1),0),MATCH(OfficeVariances[[#Headers],[Haz]],OfficePlan[#Headers],0))-INDEX(OfficeActual[],MATCH(INDEX(OfficeVariances[],ROW()-ROW(OfficeVariances[[#Headers],[Haz]]),1),INDEX(OfficePlan[],,1),0),MATCH(OfficeVariances[[#Headers],[Haz]],OfficeActual[#Headers],0)) -> ₺30.00 | I15: =INDEX(OfficePlan[],MATCH(INDEX(OfficeVariances[],ROW()-ROW(OfficeVariances[[#Headers],[Tem]]),1),INDEX(OfficePlan[],,1),0),MATCH(OfficeVariances[[#Headers],[Tem]],OfficePlan[#Headers],0))-INDEX(OfficeActual[],MATCH(INDEX(OfficeVariances[],ROW()-ROW(OfficeVariances[[#Headers],[Tem]]),1),INDEX(OfficePlan[],,1),0),MATCH(OfficeVariances[[#Headers],[Tem]],OfficeActual[#Headers],0)) -> ₺250.00 | J15: =INDEX(OfficePlan[],MATCH(INDEX(OfficeVariances[],ROW()-ROW(OfficeVariances[[#Headers],[Ağu]]),1),INDEX(OfficePlan[],,1),0),MATCH(OfficeVariances[[#Headers],[Ağu]],OfficePlan[#Headers],0))-INDEX(OfficeActual[],MATCH(INDEX(OfficeVariances[],ROW()-ROW(OfficeVariances[[#Headers],[Ağu]]),1),INDEX(OfficePlan[],,1),0),MATCH(OfficeVariances[[#Headers],[Ağu]],OfficeActual[#Headers],0)) -> ₺250.00 | K15: =INDEX(OfficePlan[],MATCH(INDEX(OfficeVariances[],ROW()-ROW(OfficeVariances[[#Headers],[Eyl]]),1),INDEX(OfficePlan[],,1),0),MATCH(OfficeVariances[[#Headers],[Eyl]],OfficePlan[#Headers],0))-INDEX(OfficeActual[],MATCH(INDEX(OfficeVariances[],ROW()-ROW(OfficeVariances[[#Headers],[Eyl]]),1),INDEX(OfficePlan[],,1),0),MATCH(OfficeVariances[[#Headers],[Eyl]],OfficeActual[#Headers],0)) -> ₺250.00 | L15: =INDEX(OfficePlan[],MATCH(INDEX(OfficeVariances[],ROW()-ROW(OfficeVariances[[#Headers],[Eki]]),1),INDEX(OfficePlan[],,1),0),MATCH(OfficeVariances[[#Headers],[Eki]],OfficePlan[#Headers],0))-INDEX(OfficeActual[],MATCH(INDEX(OfficeVariances[],ROW()-ROW(OfficeVariances[[#Headers],[Eki]]),1),INDEX(OfficePlan[],,1),0),MATCH(OfficeVariances[[#Headers],[Eki]],OfficeActual[#Headers],0)) -> ₺250.00 | M15: =INDEX(OfficePlan[],MATCH(INDEX(OfficeVariances[],ROW()-ROW(OfficeVariances[[#Headers],[Kas]]),1),INDEX(OfficePlan[],,1),0),MATCH(OfficeVariances[[#Headers],[Kas]],OfficePlan[#Headers],0))-INDEX(OfficeActual[],MATCH(INDEX(OfficeVariances[],ROW()-ROW(OfficeVariances[[#Headers],[Kas]]),1),INDEX(OfficePlan[],,1),0),MATCH(OfficeVariances[[#Headers],[Kas]],OfficeActual[#Headers],0)) -> ₺250.00 | N15: =INDEX(OfficePlan[],MATCH(INDEX(OfficeVariances[],ROW()-ROW(OfficeVariances[[#Headers],[Ara]]),1),INDEX(OfficePlan[],,1),0),MATCH(OfficeVariances[[#Headers],[Ara]],OfficePlan[#Headers],0))-INDEX(OfficeActual[],MATCH(INDEX(OfficeVariances[],ROW()-ROW(OfficeVariances[[#Headers],[Ara]]),1),INDEX(OfficePlan[],,1),0),MATCH(OfficeVariances[[#Headers],[Ara]],OfficeActual[#Headers],0)) -> ₺250.00 | O15: =SUM(OfficeVariances[[#This Row],[Oca]:[Ara]]) -> ₺1,566.00
B16: İnternet erişimi | C16: =INDEX(OfficePlan[],MATCH(INDEX(OfficeVariances[],ROW()-ROW(OfficeVariances[[#Headers],[Oca]]),1),INDEX(OfficePlan[],,1),0),MATCH(OfficeVariances[[#Headers],[Oca]],OfficePlan[#Headers],0))-INDEX(OfficeActual[],MATCH(INDEX(OfficeVariances[],ROW()-ROW(OfficeVariances[[#Headers],[Oca]]),1),INDEX(OfficePlan[],,1),0),MATCH(OfficeVariances[[#Headers],[Oca]],OfficeActual[#Headers],0)) -> ₺0.00 | D16: =INDEX(OfficePlan[],MATCH(INDEX(OfficeVariances[],ROW()-ROW(OfficeVariances[[#Headers],[Şub]]),1),INDEX(OfficePlan[],,1),0),MATCH(OfficeVariances[[#Headers],[Şub]],OfficePlan[#Headers],0))-INDEX(OfficeActual[],MATCH(INDEX(OfficeVariances[],ROW()-ROW(OfficeVariances[[#Headers],[Şub]]),1),INDEX(OfficePlan[],,1),0),MATCH(OfficeVariances[[#Headers],[Şub]],OfficeActual[#Headers],0)) -> ₺0.00 | E16: =INDEX(OfficePlan[],MATCH(INDEX(OfficeVariances[],ROW()-ROW(OfficeVariances[[#Headers],[Mar]]),1),INDEX(OfficePlan[],,1),0),MATCH(OfficeVariances[[#Headers],[Mar]],OfficePlan[#Headers],0))-INDEX(OfficeActual[],MATCH(INDEX(OfficeVariances[],ROW()-ROW(OfficeVariances[[#Headers],[Mar]]),1),INDEX(OfficePlan[],,1),0),MATCH(OfficeVariances[[#Headers],[Mar]],OfficeActual[#Headers],0)) -> ₺0.00 | F16: =INDEX(OfficePlan[],MATCH(INDEX(OfficeVariances[],ROW()-ROW(OfficeVariances[[#Headers],[Nis]]),1),INDEX(OfficePlan[],,1),0),MATCH(OfficeVariances[[#Headers],[Nis]],OfficePlan[#Headers],0))-INDEX(OfficeActual[],MATCH(INDEX(OfficeVariances[],ROW()-ROW(OfficeVariances[[#Headers],[Nis]]),1),INDEX(OfficePlan[],,1),0),MATCH(OfficeVariances[[#Headers],[Nis]],OfficeActual[#Headers],0)) -> ₺0.00 | G16: =INDEX(OfficePlan[],MATCH(INDEX(OfficeVariances[],ROW()-ROW(OfficeVariances[[#Headers],[May]]),1),INDEX(OfficePlan[],,1),0),MATCH(OfficeVariances[[#Headers],[May]],OfficePlan[#Headers],0))-INDEX(OfficeActual[],MATCH(INDEX(OfficeVariances[],ROW()-ROW(OfficeVariances[[#Headers],[May]]),1),INDEX(OfficePlan[],,1),0),MATCH(OfficeVariances[[#Headers],[May]],OfficeActual[#Headers],0)) -> ₺0.00 | H16: =INDEX(OfficePlan[],MATCH(INDEX(OfficeVariances[],ROW()-ROW(OfficeVariances[[#Headers],[Haz]]),1),INDEX(OfficePlan[],,1),0),MATCH(OfficeVariances[[#Headers],[Haz]],OfficePlan[#Headers],0))-INDEX(OfficeActual[],MATCH(INDEX(OfficeVariances[],ROW()-ROW(OfficeVariances[[#Headers],[Haz]]),1),INDEX(OfficePlan[],,1),0),MATCH(OfficeVariances[[#Headers],[Haz]],OfficeActual[#Headers],0)) -> ₺0.00 | I16: =INDEX(OfficePlan[],MATCH(INDEX(OfficeVariances[],ROW()-ROW(OfficeVariances[[#Headers],[Tem]]),1),INDEX(OfficePlan[],,1),0),MATCH(OfficeVariances[[#Headers],[Tem]],OfficePlan[#Headers],0))-INDEX(OfficeActual[],MATCH(INDEX(OfficeVariances[],ROW()-ROW(OfficeVariances[[#Headers],[Tem]]),1),INDEX(OfficePlan[],,1),0),MATCH(OfficeVariances[[#Headers],[Tem]],OfficeActual[#Headers],0)) -> ₺180.00 | J16: =INDEX(OfficePlan[],MATCH(INDEX(OfficeVariances[],ROW()-ROW(OfficeVariances[[#Headers],[Ağu]]),1),INDEX(OfficePlan[],,1),0),MATCH(OfficeVariances[[#Headers],[Ağu]],OfficePlan[#Headers],0))-INDEX(OfficeActual[],MATCH(INDEX(OfficeVariances[],ROW()-ROW(OfficeVariances[[#Headers],[Ağu]]),1),INDEX(OfficePlan[],,1),0),MATCH(OfficeVariances[[#Headers],[Ağu]],OfficeActual[#Headers],0)) -> ₺180.00 | K16: =INDEX(OfficePlan[],MATCH(INDEX(OfficeVariances[],ROW()-ROW(OfficeVariances[[#Headers],[Eyl]]),1),INDEX(OfficePlan[],,1),0),MATCH(OfficeVariances[[#Headers],[Eyl]],OfficePlan[#Headers],0))-INDEX(OfficeActual[],MATCH(INDEX(OfficeVariances[],ROW()-ROW(OfficeVariances[[#Headers],[Eyl]]),1),INDEX(OfficePlan[],,1),0),MATCH(OfficeVariances[[#Headers],[Eyl]],OfficeActual[#Headers],0)) -> ₺180.00 | L16: =INDEX(OfficePlan[],MATCH(INDEX(OfficeVariances[],ROW()-ROW(OfficeVariances[[#Headers],[Eki]]),1),INDEX(OfficePlan[],,1),0),MATCH(OfficeVariances[[#Headers],[Eki]],OfficePlan[#Headers],0))-INDEX(OfficeActual[],MATCH(INDEX(OfficeVariances[],ROW()-ROW(OfficeVariances[[#Headers],[Eki]]),1),INDEX(OfficePlan[],,1),0),MATCH(OfficeVariances[[#Headers],[Eki]],OfficeActual[#Headers],0)) -> ₺180.00 | M16: =INDEX(OfficePlan[],MATCH(INDEX(OfficeVariances[],ROW()-ROW(OfficeVariances[[#Headers],[Kas]]),1),INDEX(OfficePlan[],,1),0),MATCH(OfficeVariances[[#Headers],[Kas]],OfficePlan[#Headers],0))-INDEX(OfficeActual[],MATCH(INDEX(OfficeVariances[],ROW()-ROW(OfficeVariances[[#Headers],[Kas]]),1),INDEX(OfficePlan[],,1),0),MATCH(OfficeVariances[[#Headers],[Kas]],OfficeActual[#Headers],0)) -> ₺180.00 | N16: =INDEX(OfficePlan[],MATCH(INDEX(OfficeVariances[],ROW()-ROW(OfficeVariances[[#Headers],[Ara]]),1),INDEX(OfficePlan[],,1),0),MATCH(OfficeVariances[[#Headers],[Ara]],OfficePlan[#Headers],0))-INDEX(OfficeActual[],MATCH(INDEX(OfficeVariances[],ROW()-ROW(OfficeVariances[[#Headers],[Ara]]),1),INDEX(OfficePlan[],,1),0),MATCH(OfficeVariances[[#Headers],[Ara]],OfficeActual[#Headers],0)) -> ₺180.00 | O16: =SUM(OfficeVariances[[#This Row],[Oca]:[Ara]]) -> ₺1,080.00
B17: Ofis malzemeleri | C17: =INDEX(OfficePlan[],MATCH(INDEX(OfficeVariances[],ROW()-ROW(OfficeVariances[[#Headers],[Oca]]),1),INDEX(OfficePlan[],,1),0),MATCH(OfficeVariances[[#Headers],[Oca]],OfficePlan[#Headers],0))-INDEX(OfficeActual[],MATCH(INDEX(OfficeVariances[],ROW()-ROW(OfficeVariances[[#Headers],[Oca]]),1),INDEX(OfficePlan[],,1),0),MATCH(OfficeVariances[[#Headers],[Oca]],OfficeActual[#Headers],0)) -> -₺56.00 | D17: =INDEX(OfficePlan[],MATCH(INDEX(OfficeVariances[],ROW()-ROW(OfficeVariances[[#Headers],[Şub]]),1),INDEX(OfficePlan[],,1),0),MATCH(OfficeVariances[[#Headers],[Şub]],OfficePlan[#Headers],0))-INDEX(OfficeActual[],MATCH(INDEX(OfficeVariances[],ROW()-ROW(OfficeVariances[[#Headers],[Şub]]),1),INDEX(OfficePlan[],,1),0),MATCH(OfficeVariances[[#Headers],[Şub]],OfficeActual[#Headers],0)) -> ₺58.00 | E17: =INDEX(OfficePlan[],MATCH(INDEX(OfficeVariances[],ROW()-ROW(OfficeVariances[[#Headers],[Mar]]),1),INDEX(OfficePlan[],,1),0),MATCH(OfficeVariances[[#Headers],[Mar]],OfficePlan[#Headers],0))-INDEX(OfficeActual[],MATCH(INDEX(OfficeVariances[],ROW()-ROW(OfficeVariances[[#Headers],[Mar]]),1),INDEX(OfficePlan[],,1),0),MATCH(OfficeVariances[[#Headers],[Mar]],OfficeActual[#Headers],0)) -> ₺40.00 | F17: =INDEX(OfficePlan[],MATCH(INDEX(OfficeVariances[],ROW()-ROW(OfficeVariances[[#Headers],[Nis]]),1),INDEX(OfficePlan[],,1),0),MATCH(OfficeVariances[[#Headers],[Nis]],OfficePlan[#Headers],0))-INDEX(OfficeActual[],MATCH(INDEX(OfficeVariances[],ROW()-ROW(OfficeVariances[[#Headers],[Nis]]),1),INDEX(OfficePlan[],,1),0),MATCH(OfficeVariances[[#Headers],[Nis]],OfficeActual[#Headers],0)) -> -₺21.00 | G17: =INDEX(OfficePlan[],MATCH(INDEX(OfficeVariances[],ROW()-ROW(OfficeVariances[[#Headers],[May]]),1),INDEX(OfficePlan[],,1),0),MATCH(OfficeVariances[[#Headers],[May]],OfficePlan[#Headers],0))-INDEX(OfficeActual[],MATCH(INDEX(OfficeVariances[],ROW()-ROW(OfficeVariances[[#Headers],[May]]),1),INDEX(OfficePlan[],,1),0),MATCH(OfficeVariances[[#Headers],[May]],OfficeActual[#Headers],0)) -> -₺56.00 | H17: =INDEX(OfficePlan[],MATCH(INDEX(OfficeVariances[],ROW()-ROW(OfficeVariances[[#Headers],[Haz]]),1),INDEX(OfficePlan[],,1),0),MATCH(OfficeVariances[[#Headers],[Haz]],OfficePlan[#Headers],0))-INDEX(OfficeActual[],MATCH(INDEX(OfficeVariances[],ROW()-ROW(OfficeVariances[[#Headers],[Haz]]),1),INDEX(OfficePlan[],,1),0),MATCH(OfficeVariances[[#Headers],[Haz]],OfficeActual[#Headers],0)) -> -₺40.00 | I17: =INDEX(OfficePlan[],MATCH(INDEX(OfficeVariances[],ROW()-ROW(OfficeVariances[[#Headers],[Tem]]),1),INDEX(OfficePlan[],,1),0),MATCH(OfficeVariances[[#Headers],[Tem]],OfficePlan[#Headers],0))-INDEX(OfficeActual[],MATCH(INDEX(OfficeVariances[],ROW()-ROW(OfficeVariances[[#Headers],[Tem]]),1),INDEX(OfficePlan[],,1),0),MATCH(OfficeVariances[[#Headers],[Tem]],OfficeActual[#Headers],0)) -> ₺200.00 | J17: =INDEX(OfficePlan[],MATCH(INDEX(OfficeVariances[],ROW()-ROW(OfficeVariances[[#Headers],[Ağu]]),1),INDEX(OfficePlan[],,1),0),MATCH(OfficeVariances[[#Headers],[Ağu]],OfficePlan[#Headers],0))-INDEX(OfficeActual[],MATCH(INDEX(OfficeVariances[],ROW()-ROW(OfficeVariances[[#Headers],[Ağu]]),1),INDEX(OfficePlan[],,1),0),MATCH(OfficeVariances[[#Headers],[Ağu]],OfficeActual[#Headers],0)) -> ₺200.00 | K17: =INDEX(OfficePlan[],MATCH(INDEX(OfficeVariances[],ROW()-ROW(OfficeVariances[[#Headers],[Eyl]]),1),INDEX(OfficePlan[],,1),0),MATCH(OfficeVariances[[#Headers],[Eyl]],OfficePlan[#Headers],0))-INDEX(OfficeActual[],MATCH(INDEX(OfficeVariances[],ROW()-ROW(OfficeVariances[[#Headers],[Eyl]]),1),INDEX(OfficePlan[],,1),0),MATCH(OfficeVariances[[#Headers],[Eyl]],OfficeActual[#Headers],0)) -> ₺200.00 | L17: =INDEX(OfficePlan[],MATCH(INDEX(OfficeVariances[],ROW()-ROW(OfficeVariances[[#Headers],[Eki]]),1),INDEX(OfficePlan[],,1),0),MATCH(OfficeVariances[[#Headers],[Eki]],OfficePlan[#Headers],0))-INDEX(OfficeActual[],MATCH(INDEX(OfficeVariances[],ROW()-ROW(OfficeVariances[[#Headers],[Eki]]),1),INDEX(OfficePlan[],,1),0),MATCH(OfficeVariances[[#Headers],[Eki]],OfficeActual[#Headers],0)) -> ₺200.00 | M17: =INDEX(OfficePlan[],MATCH(INDEX(OfficeVariances[],ROW()-ROW(OfficeVariances[[#Headers],[Kas]]),1),INDEX(OfficePlan[],,1),0),MATCH(OfficeVariances[[#Headers],[Kas]],OfficePlan[#Headers],0))-INDEX(OfficeActual[],MATCH(INDEX(OfficeVariances[],ROW()-ROW(OfficeVariances[[#Headers],[Kas]]),1),INDEX(OfficePlan[],,1),0),MATCH(OfficeVariances[[#Headers],[Kas]],OfficeActual[#Headers],0)) -> ₺200.00 | N17: =INDEX(OfficePlan[],MATCH(INDEX(OfficeVariances[],ROW()-ROW(OfficeVariances[[#Headers],[Ara]]),1),INDEX(OfficePlan[],,1),0),MATCH(OfficeVariances[[#Headers],[Ara]],OfficePlan[#Headers],0))-INDEX(OfficeActual[],MATCH(INDEX(OfficeVariances[],ROW()-ROW(OfficeVariances[[#Headers],[Ara]]),1),INDEX(OfficePlan[],,1),0),MATCH(OfficeVariances[[#Headers],[Ara]],OfficeActual[#Headers],0)) -> ₺200.00 | O17: =SUM(OfficeVariances[[#This Row],[Oca]:[Ara]]) -> ₺1,125.00
B18: Güvenlik | C18: =INDEX(OfficePlan[],MATCH(INDEX(OfficeVariances[],ROW()-ROW(OfficeVariances[[#Headers],[Oca]]),1),INDEX(OfficePlan[],,1),0),MATCH(OfficeVariances[[#Headers],[Oca]],OfficePlan[#Headers],0))-INDEX(OfficeActual[],MATCH(INDEX(OfficeVariances[],ROW()-ROW(OfficeVariances[[#Headers],[Oca]]),1),INDEX(OfficePlan[],,1),0),MATCH(OfficeVariances[[#Headers],[Oca]],OfficeActual[#Headers],0)) -> ₺0.00 | D18: =INDEX(OfficePlan[],MATCH(INDEX(OfficeVariances[],ROW()-ROW(OfficeVariances[[#Headers],[Şub]]),1),INDEX(OfficePlan[],,1),0),MATCH(OfficeVariances[[#Headers],[Şub]],OfficePlan[#Headers],0))-INDEX(OfficeActual[],MATCH(INDEX(OfficeVariances[],ROW()-ROW(OfficeVariances[[#Headers],[Şub]]),1),INDEX(OfficePlan[],,1),0),MATCH(OfficeVariances[[#Headers],[Şub]],OfficeActual[#Headers],0)) -> ₺0.00 | E18: =INDEX(OfficePlan[],MATCH(INDEX(OfficeVariances[],ROW()-ROW(OfficeVariances[[#Headers],[Mar]]),1),INDEX(OfficePlan[],,1),0),MATCH(OfficeVariances[[#Headers],[Mar]],OfficePlan[#Headers],0))-INDEX(OfficeActual[],MATCH(INDEX(OfficeVariances[],ROW()-ROW(OfficeVariances[[#Headers],[Mar]]),1),INDEX(OfficePlan[],,1),0),MATCH(OfficeVariances[[#Headers],[Mar]],OfficeActual[#Headers],0)) -> ₺0.00 | F18: =INDEX(OfficePlan[],MATCH(INDEX(OfficeVariances[],ROW()-ROW(OfficeVariances[[#Headers],[Nis]]),1),INDEX(OfficePlan[],,1),0),MATCH(OfficeVariances[[#Headers],[Nis]],OfficePlan[#Headers],0))-INDEX(OfficeActual[],MATCH(INDEX(OfficeVariances[],ROW()-ROW(OfficeVariances[[#Headers],[Nis]]),1),INDEX(OfficePlan[],,1),0),MATCH(OfficeVariances[[#Headers],[Nis]],OfficeActual[#Headers],0)) -> ₺0.00 | G18: =INDEX(OfficePlan[],MATCH(INDEX(OfficeVariances[],ROW()-ROW(OfficeVariances[[#Headers],[May]]),1),INDEX(OfficePlan[],,1),0),MATCH(OfficeVariances[[#Headers],[May]],OfficePlan[#Headers],0))-INDEX(OfficeActual[],MATCH(INDEX(OfficeVariances[],ROW()-ROW(OfficeVariances[[#Headers],[May]]),1),INDEX(OfficePlan[],,1),0),MATCH(OfficeVariances[[#Headers],[May]],OfficeActual[#Headers],0)) -> ₺0.00 | H18: =INDEX(OfficePlan[],MATCH(INDEX(OfficeVariances[],ROW()-ROW(OfficeVariances[[#Headers],[Haz]]),1),INDEX(OfficePlan[],,1),0),MATCH(OfficeVariances[[#Headers],[Haz]],OfficePlan[#Headers],0))-INDEX(OfficeActual[],MATCH(INDEX(OfficeVariances[],ROW()-ROW(OfficeVariances[[#Headers],[Haz]]),1),INDEX(OfficePlan[],,1),0),MATCH(OfficeVariances[[#Headers],[Haz]],OfficeActual[#Headers],0)) -> ₺0.00 | I18: =INDEX(OfficePlan[],MATCH(INDEX(OfficeVariances[],ROW()-ROW(OfficeVariances[[#Headers],[Tem]]),1),INDEX(OfficePlan[],,1),0),MATCH(OfficeVariances[[#Headers],[Tem]],OfficePlan[#Headers],0))-INDEX(OfficeActual[],MATCH(INDEX(OfficeVariances[],ROW()-ROW(OfficeVariances[[#Headers],[Tem]]),1),INDEX(OfficePlan[],,1),0),MATCH(OfficeVariances[[#Headers],[Tem]],OfficeActual[#Headers],0)) -> ₺600.00 | J18: =INDEX(OfficePlan[],MATCH(INDEX(OfficeVariances[],ROW()-ROW(OfficeVariances[[#Headers],[Ağu]]),1),INDEX(OfficePlan[],,1),0),MATCH(OfficeVariances[[#Headers],[Ağu]],OfficePlan[#Headers],0))-INDEX(OfficeActual[],MATCH(INDEX(OfficeVariances[],ROW()-ROW(OfficeVariances[[#Headers],[Ağu]]),1),INDEX(OfficePlan[],,1),0),MATCH(OfficeVariances[[#Headers],[Ağu]],OfficeActual[#Headers],0)) -> ₺600.00 | K18: =INDEX(OfficePlan[],MATCH(INDEX(OfficeVariances[],ROW()-ROW(OfficeVariances[[#Headers],[Eyl]]),1),INDEX(OfficePlan[],,1),0),MATCH(OfficeVariances[[#Headers],[Eyl]],OfficePlan[#Headers],0))-INDEX(OfficeActual[],MATCH(INDEX(OfficeVariances[],ROW()-ROW(OfficeVariances[[#Headers],[Eyl]]),1),INDEX(OfficePlan[],,1),0),MATCH(OfficeVariances[[#Headers],[Eyl]],OfficeActual[#Headers],0)) -> ₺600.00 | L18: =INDEX(OfficePlan[],MATCH(INDEX(OfficeVariances[],ROW()-ROW(OfficeVariances[[#Headers],[Eki]]),1),INDEX(OfficePlan[],,1),0),MATCH(OfficeVariances[[#Headers],[Eki]],OfficePlan[#Headers],0))-INDEX(OfficeActual[],MATCH(INDEX(OfficeVariances[],ROW()-ROW(OfficeVariances[[#Headers],[Eki]]),1),INDEX(OfficePlan[],,1),0),MATCH(OfficeVariances[[#Headers],[Eki]],OfficeActual[#Headers],0)) -> ₺600.00 | M18: =INDEX(OfficePlan[],MATCH(INDEX(OfficeVariances[],ROW()-ROW(OfficeVariances[[#Headers],[Kas]]),1),INDEX(OfficePlan[],,1),0),MATCH(OfficeVariances[[#Headers],[Kas]],OfficePlan[#Headers],0))-INDEX(OfficeActual[],MATCH(INDEX(OfficeVariances[],ROW()-ROW(OfficeVariances[[#Headers],[Kas]]),1),INDEX(OfficePlan[],,1),0),MATCH(OfficeVariances[[#Headers],[Kas]],OfficeActual[#Headers],0)) -> ₺600.00 | N18: =INDEX(OfficePlan[],MATCH(INDEX(OfficeVariances[],ROW()-ROW(OfficeVariances[[#Headers],[Ara]]),1),INDEX(OfficePlan[],,1),0),MATCH(OfficeVariances[[#Headers],[Ara]],OfficePlan[#Headers],0))-INDEX(OfficeActual[],MATCH(INDEX(OfficeVariances[],ROW()-ROW(OfficeVariances[[#Headers],[Ara]]),1),INDEX(OfficePlan[],,1),0),MATCH(OfficeVariances[[#Headers],[Ara]],OfficeActual[#Headers],0)) -> ₺600.00 | O18: =SUM(OfficeVariances[[#This Row],[Oca]:[Ara]]) -> ₺3,600.00
B19: Ara toplam | C19: =SUBTOTAL(109,OfficeVariances[Oca]) -> -₺17.00 | D19: =SUBTOTAL(109,OfficeVariances[Şub]) -> ₺72.00 | E19: =SUBTOTAL(109,OfficeVariances[Mar]) -> ₺78.00 | F19: =SUBTOTAL(109,OfficeVariances[Nis]) -> -₺141.00 | G19: =SUBTOTAL(109,OfficeVariances[May]) -> -₺38.00 | H19: =SUBTOTAL(109,OfficeVariances[Haz]) -> ₺16.00 | I19: =SUBTOTAL(109,OfficeVariances[Tem]) -> ₺11,470.00 | J19: =SUBTOTAL(109,OfficeVariances[Ağu]) -> ₺11,470.00 | K19: =SUBTOTAL(109,OfficeVariances[Eyl]) -> ₺11,470.00 | L19: =SUBTOTAL(109,OfficeVariances[Eki]) -> ₺11,470.00 | M19: =SUBTOTAL(109,OfficeVariances[Kas]) -> ₺11,770.00 | N19: =SUBTOTAL(109,OfficeVariances[Ara]) -> ₺11,770.00 | O19: =SUBTOTAL(109,OfficeVariances[YIL]) -> ₺69,390.00
B21: Pazarlama Maliyetleri | C21: Oca | D21: Şub | E21: Mar | F21: Nis | G21: May | H21: Haz | I21: Tem | J21: Ağu | K21: Eyl | L21: Eki | M21: Kas | N21: Ara | O21: YIL
B22: Web sitesi barındırma | C22: =INDEX(MarketingPlan[],MATCH(INDEX(MarketingVariances[],ROW()-ROW(MarketingVariances[[#Headers],[Oca]]),1),INDEX(MarketingPlan[],,1),0),MATCH(MarketingVariances[[#Headers],[Oca]],MarketingPlan[#Headers],0))-INDEX(MarketingActual[],MATCH(INDEX(MarketingVariances[],ROW()-ROW(MarketingVariances[[#Headers],[Oca]]),1),INDEX(MarketingPlan[],,1),0),MATCH(MarketingVariances[[#Headers],[Oca]],MarketingActual[#Headers],0)) -> ₺0.00 | D22: =INDEX(MarketingPlan[],MATCH(INDEX(MarketingVariances[],ROW()-ROW(MarketingVariances[[#Headers],[Şub]]),1),INDEX(MarketingPlan[],,1),0),MATCH(MarketingVariances[[#Headers],[Şub]],MarketingPlan[#Headers],0))-INDEX(MarketingActual[],MATCH(INDEX(MarketingVariances[],ROW()-ROW(MarketingVariances[[#Headers],[Şub]]),1),INDEX(MarketingPlan[],,1),0),MATCH(MarketingVariances[[#Headers],[Şub]],MarketingActual[#Headers],0)) -> ₺0.00 | E22: =INDEX(MarketingPlan[],MATCH(INDEX(MarketingVariances[],ROW()-ROW(MarketingVariances[[#Headers],[Mar]]),1),INDEX(MarketingPlan[],,1),0),MATCH(MarketingVariances[[#Headers],[Mar]],MarketingPlan[#Headers],0))-INDEX(MarketingActual[],MATCH(INDEX(MarketingVariances[],ROW()-ROW(MarketingVariances[[#Headers],[Mar]]),1),INDEX(MarketingPlan[],,1),0),MATCH(MarketingVariances[[#Headers],[Mar]],MarketingActual[#Headers],0)) -> ₺0.00 | F22: =INDEX(MarketingPlan[],MATCH(INDEX(MarketingVariances[],ROW()-ROW(MarketingVariances[[#Headers],[Nis]]),1),INDEX(MarketingPlan[],,1),0),MATCH(MarketingVariances[[#Headers],[Nis]],MarketingPlan[#Headers],0))-INDEX(MarketingActual[],MATCH(INDEX(MarketingVariances[],ROW()-ROW(MarketingVariances[[#Headers],[Nis]]),1),INDEX(MarketingPlan[],,1),0),MATCH(MarketingVariances[[#Headers],[Nis]],MarketingActual[#Headers],0)) -> ₺0.00 | G22: =INDEX(MarketingPlan[],MATCH(INDEX(MarketingVariances[],ROW()-ROW(MarketingVariances[[#Headers],[May]]),1),INDEX(MarketingPlan[],,1),0),MATCH(MarketingVariances[[#Headers],[May]],MarketingPlan[#Headers],0))-INDEX(MarketingActual[],MATCH(INDEX(MarketingVariances[],ROW()-ROW(MarketingVariances[[#Headers],[May]]),1),INDEX(MarketingPlan[],,1),0),MATCH(MarketingVariances[[#Headers],[May]],MarketingActual[#Headers],0)) -> ₺0.00 | H22: =INDEX(MarketingPlan[],MATCH(INDEX(MarketingVariances[],ROW()-ROW(MarketingVariances[[#Headers],[Haz]]),1),INDEX(MarketingPlan[],,1),0),MATCH(MarketingVariances[[#Headers],[Haz]],MarketingPlan[#Headers],0))-INDEX(MarketingActual[],MATCH(INDEX(MarketingVariances[],ROW()-ROW(MarketingVariances[[#Headers],[Haz]]),1),INDEX(MarketingPlan[],,1),0),MATCH(MarketingVariances[[#Headers],[Haz]],MarketingActual[#Headers],0)) -> ₺0.00 | I22: =INDEX(MarketingPlan[],MATCH(INDEX(MarketingVariances[],ROW()-ROW(MarketingVariances[[#Headers],[Tem]]),1),INDEX(MarketingPlan[],,1),0),MATCH(MarketingVariances[[#Headers],[Tem]],MarketingPlan[#Headers],0))-INDEX(MarketingActual[],MATCH(INDEX(MarketingVariances[],ROW()-ROW(MarketingVariances[[#Headers],[Tem]]),1),INDEX(MarketingPlan[],,1),0),MATCH(MarketingVariances[[#Headers],[Tem]],MarketingActual[#Headers],0)) -> ₺500.00 | J22: =INDEX(MarketingPlan[],MATCH(INDEX(MarketingVariances[],ROW()-ROW(MarketingVariances[[#Headers],[Ağu]]),1),INDEX(MarketingPlan[],,1),0),MATCH(MarketingVariances[[#Headers],[Ağu]],MarketingPlan[#Headers],0))-INDEX(MarketingActual[],MATCH(INDEX(MarketingVariances[],ROW()-ROW(MarketingVariances[[#Headers],[Ağu]]),1),INDEX(MarketingPlan[],,1),0),MATCH(MarketingVariances[[#Headers],[Ağu]],MarketingActual[#Headers],0)) -> ₺500.00 | K22: =INDEX(MarketingPlan[],MATCH(INDEX(MarketingVariances[],ROW()-ROW(MarketingVariances[[#Headers],[Eyl]]),1),INDEX(MarketingPlan[],,1),0),MATCH(MarketingVariances[[#Headers],[Eyl]],MarketingPlan[#Headers],0))-INDEX(MarketingActual[],MATCH(INDEX(MarketingVariances[],ROW()-ROW(MarketingVariances[[#Headers],[Eyl]]),1),INDEX(MarketingPlan[],,1),0),MATCH(MarketingVariances[[#Headers],[Eyl]],MarketingActual[#Headers],0)) -> ₺500.00 | L22: =INDEX(MarketingPlan[],MATCH(INDEX(MarketingVariances[],ROW()-ROW(MarketingVariances[[#Headers],[Eki]]),1),INDEX(MarketingPlan[],,1),0),MATCH(MarketingVariances[[#Headers],[Eki]],MarketingPlan[#Headers],0))-INDEX(MarketingActual[],MATCH(INDEX(MarketingVariances[],ROW()-ROW(MarketingVariances[[#Headers],[Eki]]),1),INDEX(MarketingPlan[],,1),0),MATCH(MarketingVariances[[#Headers],[Eki]],MarketingActual[#Headers],0)) -> ₺500.00 | M22: =INDEX(MarketingPlan[],MATCH(INDEX(MarketingVariances[],ROW()-ROW(MarketingVariances[[#Headers],[Kas]]),1),INDEX(MarketingPlan[],,1),0),MATCH(MarketingVariances[[#Headers],[Kas]],MarketingPlan[#Headers],0))-INDEX(MarketingActual[],MATCH(INDEX(MarketingVariances[],ROW()-ROW(MarketingVariances[[#Headers],[Kas]]),1),INDEX(MarketingPlan[],,1),0),MATCH(MarketingVariances[[#Headers],[Kas]],MarketingActual[#Headers],0)) -> ₺500.00 | N22: =INDEX(MarketingPlan[],MATCH(INDEX(MarketingVariances[],ROW()-ROW(MarketingVariances[[#Headers],[Ara]]),1),INDEX(MarketingPlan[],,1),0),MATCH(MarketingVariances[[#Headers],[Ara]],MarketingPlan[#Headers],0))-INDEX(MarketingActual[],MATCH(INDEX(MarketingVariances[],ROW()-ROW(MarketingVariances[[#Headers],[Ara]]),1),INDEX(MarketingPlan[],,1),0),MATCH(MarketingVariances[[#Headers],[Ara]],MarketingActual[#Headers],0)) -> ₺500.00 | O22: =SUM(MarketingVariances[[#This Row],[Oca]:[Ara]]) -> ₺3,000.00
B23: Web sitesi güncelleştirmeleri | C23: =INDEX(MarketingPlan[],MATCH(INDEX(MarketingVariances[],ROW()-ROW(MarketingVariances[[#Headers],[Oca]]),1),INDEX(MarketingPlan[],,1),0),MATCH(MarketingVariances[[#Headers],[Oca]],MarketingPlan[#Headers],0))-INDEX(MarketingActual[],MATCH(INDEX(MarketingVariances[],ROW()-ROW(MarketingVariances[[#Headers],[Oca]]),1),INDEX(MarketingPlan[],,1),0),MATCH(MarketingVariances[[#Headers],[Oca]],MarketingActual[#Headers],0)) -> ₺0.00 | D23: =INDEX(MarketingPlan[],MATCH(INDEX(MarketingVariances[],ROW()-ROW(MarketingVariances[[#Headers],[Şub]]),1),INDEX(MarketingPlan[],,1),0),MATCH(MarketingVariances[[#Headers],[Şub]],MarketingPlan[#Headers],0))-INDEX(MarketingActual[],MATCH(INDEX(MarketingVariances[],ROW()-ROW(MarketingVariances[[#Headers],[Şub]]),1),INDEX(MarketingPlan[],,1),0),MATCH(MarketingVariances[[#Headers],[Şub]],MarketingActual[#Headers],0)) -> ₺0.00 | E23: =INDEX(MarketingPlan[],MATCH(INDEX(MarketingVariances[],ROW()-ROW(MarketingVariances[[#Headers],[Mar]]),1),INDEX(MarketingPlan[],,1),0),MATCH(MarketingVariances[[#Headers],[Mar]],MarketingPlan[#Headers],0))-INDEX(MarketingActual[],MATCH(INDEX(MarketingVariances[],ROW()-ROW(MarketingVariances[[#Headers],[Mar]]),1),INDEX(MarketingPlan[],,1),0),MATCH(MarketingVariances[[#Headers],[Mar]],MarketingActual[#Headers],0)) -> ₺0.00 | F23: =INDEX(MarketingPlan[],MATCH(INDEX(MarketingVariances[],ROW()-ROW(MarketingVariances[[#Headers],[Nis]]),1),INDEX(MarketingPlan[],,1),0),MATCH(MarketingVariances[[#Headers],[Nis]],MarketingPlan[#Headers],0))-INDEX(MarketingActual[],MATCH(INDEX(MarketingVariances[],ROW()-ROW(MarketingVariances[[#Headers],[Nis]]),1),INDEX(MarketingPlan[],,1),0),MATCH(MarketingVariances[[#Headers],[Nis]],MarketingActual[#Headers],0)) -> ₺0.00 | G23: =INDEX(MarketingPlan[],MATCH(INDEX(MarketingVariances[],ROW()-ROW(MarketingVariances[[#Headers],[May]]),1),INDEX(MarketingPlan[],,1),0),MATCH(MarketingVariances[[#Headers],[May]],MarketingPlan[#Headers],0))-INDEX(MarketingActual[],MATCH(INDEX(MarketingVariances[],ROW()-ROW(MarketingVariances[[#Headers],[May]]),1),INDEX(MarketingPlan[],,1),0),MATCH(MarketingVariances[[#Headers],[May]],MarketingActual[#Headers],0)) -> ₺0.00 | H23: =INDEX(MarketingPlan[],MATCH(INDEX(MarketingVariances[],ROW()-ROW(MarketingVariances[[#Headers],[Haz]]),1),INDEX(MarketingPlan[],,1),0),MATCH(MarketingVariances[[#Headers],[Haz]],MarketingPlan[#Headers],0))-INDEX(MarketingActual[],MATCH(INDEX(MarketingVariances[],ROW()-ROW(MarketingVariances[[#Headers],[Haz]]),1),INDEX(MarketingPlan[],,1),0),MATCH(MarketingVariances[[#Headers],[Haz]],MarketingActual[#Headers],0)) -> -₺500.00 | I23: =INDEX(MarketingPlan[],MATCH(INDEX(MarketingVariances[],ROW()-ROW(MarketingVariances[[#Headers],[Tem]]),1),INDEX(MarketingPlan[],,1),0),MATCH(MarketingVariances[[#Headers],[Tem]],MarketingPlan[#Headers],0))-INDEX(MarketingActual[],MATCH(INDEX(MarketingVariances[],ROW()-ROW(MarketingVariances[[#Headers],[Tem]]),1),INDEX(MarketingPlan[],,1),0),MATCH(MarketingVariances[[#Headers],[Tem]],MarketingActual[#Headers],0)) -> ₺200.00 | J23: =INDEX(MarketingPlan[],MATCH(INDEX(MarketingVariances[],ROW()-ROW(MarketingVariances[[#Headers],[Ağu]]),1),INDEX(MarketingPlan[],,1),0),MATCH(MarketingVariances[[#Headers],[Ağu]],MarketingPlan[#Headers],0))-INDEX(MarketingActual[],MATCH(INDEX(MarketingVariances[],ROW()-ROW(MarketingVariances[[#Headers],[Ağu]]),1),INDEX(MarketingPlan[],,1),0),MATCH(MarketingVariances[[#Headers],[Ağu]],MarketingActual[#Headers],0)) -> ₺200.00 | K23: =INDEX(MarketingPlan[],MATCH(INDEX(MarketingVariances[],ROW()-ROW(MarketingVariances[[#Headers],[Eyl]]),1),INDEX(MarketingPlan[],,1),0),MATCH(MarketingVariances[[#Headers],[Eyl]],MarketingPlan[#Headers],0))-INDEX(MarketingActual[],MATCH(INDEX(MarketingVariances[],ROW()-ROW(MarketingVariances[[#Headers],[Eyl]]),1),INDEX(MarketingPlan[],,1),0),MATCH(MarketingVariances[[#Headers],[Eyl]],MarketingActual[#Headers],0)) -> ₺200.00 | L23: =INDEX(MarketingPlan[],MATCH(INDEX(MarketingVariances[],ROW()-ROW(MarketingVariances[[#Headers],[Eki]]),1),INDEX(MarketingPlan[],,1),0),MATCH(MarketingVariances[[#Headers],[Eki]],MarketingPlan[#Headers],0))-INDEX(MarketingActual[],MATCH(INDEX(MarketingVariances[],ROW()-ROW(MarketingVariances[[#Headers],[Eki]]),1),INDEX(MarketingPlan[],,1),0),MATCH(MarketingVariances[[#Headers],[Eki]],MarketingActual[#Headers],0)) -> ₺200.00 | M23: =INDEX(MarketingPlan[],MATCH(INDEX(MarketingVariances[],ROW()-ROW(MarketingVariances[[#Headers],[Kas]]),1),INDEX(MarketingPlan[],,1),0),MATCH(MarketingVariances[[#Headers],[Kas]],MarketingPlan[#Headers],0))-INDEX(MarketingActual[],MATCH(INDEX(MarketingVariances[],ROW()-ROW(MarketingVariances[[#Headers],[Kas]]),1),INDEX(MarketingPlan[],,1),0),MATCH(MarketingVariances[[#Headers],[Kas]],MarketingActual[#Headers],0)) -> ₺200.00 | N23: =INDEX(MarketingPlan[],MATCH(INDEX(MarketingVariances[],ROW()-ROW(MarketingVariances[[#Headers],[Ara]]),1),INDEX(MarketingPlan[],,1),0),MATCH(MarketingVariances[[#Headers],[Ara]],MarketingPlan[#Headers],0))-INDEX(MarketingActual[],MATCH(INDEX(MarketingVariances[],ROW()-ROW(MarketingVariances[[#Headers],[Ara]]),1),INDEX(MarketingPlan[],,1),0),MATCH(MarketingVariances[[#Headers],[Ara]],MarketingActual[#Headers],0)) -> ₺1,000.00 | O23: =SUM(MarketingVariances[[#This Row],[Oca]:[Ara]]) -> ₺1,500.00
B24: Yardımcı malzeme hazırlığı | C24: =INDEX(MarketingPlan[],MATCH(INDEX(MarketingVariances[],ROW()-ROW(MarketingVariances[[#Headers],[Oca]]),1),INDEX(MarketingPlan[],,1),0),MATCH(MarketingVariances[[#Headers],[Oca]],MarketingPlan[#Headers],0))-INDEX(MarketingActual[],MATCH(INDEX(MarketingVariances[],ROW()-ROW(MarketingVariances[[#Headers],[Oca]]),1),INDEX(MarketingPlan[],,1),0),MATCH(MarketingVariances[[#Headers],[Oca]],MarketingActual[#Headers],0)) -> ₺200.00 | D24: =INDEX(MarketingPlan[],MATCH(INDEX(MarketingVariances[],ROW()-ROW(MarketingVariances[[#Headers],[Şub]]),1),INDEX(MarketingPlan[],,1),0),MATCH(MarketingVariances[[#Headers],[Şub]],MarketingPlan[#Headers],0))-INDEX(MarketingActual[],MATCH(INDEX(MarketingVariances[],ROW()-ROW(MarketingVariances[[#Headers],[Şub]]),1),INDEX(MarketingPlan[],,1),0),MATCH(MarketingVariances[[#Headers],[Şub]],MarketingActual[#Headers],0)) -> ₺0.00 | E24: =INDEX(MarketingPlan[],MATCH(INDEX(MarketingVariances[],ROW()-ROW(MarketingVariances[[#Headers],[Mar]]),1),INDEX(MarketingPlan[],,1),0),MATCH(MarketingVariances[[#Headers],[Mar]],MarketingPlan[#Headers],0))-INDEX(MarketingActual[],MATCH(INDEX(MarketingVariances[],ROW()-ROW(MarketingVariances[[#Headers],[Mar]]),1),INDEX(MarketingPlan[],,1),0),MATCH(MarketingVariances[[#Headers],[Mar]],MarketingActual[#Headers],0)) -> ₺0.00 | F24: =INDEX(MarketingPlan[],MATCH(INDEX(MarketingVariances[],ROW()-ROW(MarketingVariances[[#Headers],[Nis]]),1),INDEX(MarketingPlan[],,1),0),MATCH(MarketingVariances[[#Headers],[Nis]],MarketingPlan[#Headers],0))-INDEX(MarketingActual[],MATCH(INDEX(MarketingVariances[],ROW()-ROW(MarketingVariances[[#Headers],[Nis]]),1),INDEX(MarketingPlan[],,1),0),MATCH(MarketingVariances[[#Headers],[Nis]],MarketingActual[#Headers],0)) -> -₺500.00 | G24: =INDEX(MarketingPlan[],MATCH(INDEX(MarketingVariances[],ROW()-ROW(MarketingVariances[[#Headers],[May]]),1),INDEX(MarketingPlan[],,1),0),MATCH(MarketingVariances[[#Headers],[May]],MarketingPlan[#Headers],0))-INDEX(MarketingActual[],MATCH(INDEX(MarketingVariances[],ROW()-ROW(MarketingVariances[[#Headers],[May]]),1),INDEX(MarketingPlan[],,1),0),MATCH(MarketingVariances[[#Headers],[May]],MarketingActual[#Headers],0)) -> ₺0.00 | H24: =INDEX(MarketingPlan[],MATCH(INDEX(MarketingVariances[],ROW()-ROW(MarketingVariances[[#Headers],[Haz]]),1),INDEX(MarketingPlan[],,1),0),MATCH(MarketingVariances[[#Headers],[Haz]],MarketingPlan[#Headers],0))-INDEX(MarketingActual[],MATCH(INDEX(MarketingVariances[],ROW()-ROW(MarketingVariances[[#Headers],[Haz]]),1),INDEX(MarketingPlan[],,1),0),MATCH(MarketingVariances[[#Headers],[Haz]],MarketingActual[#Headers],0)) -> ₺0.00 | I24: =INDEX(MarketingPlan[],MATCH(INDEX(MarketingVariances[],ROW()-ROW(MarketingVariances[[#Headers],[Tem]]),1),INDEX(MarketingPlan[],,1),0),MATCH(MarketingVariances[[#Headers],[Tem]],MarketingPlan[#Headers],0))-INDEX(MarketingActual[],MATCH(INDEX(MarketingVariances[],ROW()-ROW(MarketingVariances[[#Headers],[Tem]]),1),INDEX(MarketingPlan[],,1),0),MATCH(MarketingVariances[[#Headers],[Tem]],MarketingActual[#Headers],0)) -> ₺5,000.00 | J24: =INDEX(MarketingPlan[],MATCH(INDEX(MarketingVariances[],ROW()-ROW(MarketingVariances[[#Headers],[Ağu]]),1),INDEX(MarketingPlan[],,1),0),MATCH(MarketingVariances[[#Headers],[Ağu]],MarketingPlan[#Headers],0))-INDEX(MarketingActual[],MATCH(INDEX(MarketingVariances[],ROW()-ROW(MarketingVariances[[#Headers],[Ağu]]),1),INDEX(MarketingPlan[],,1),0),MATCH(MarketingVariances[[#Headers],[Ağu]],MarketingActual[#Headers],0)) -> ₺0.00 | K24: =INDEX(MarketingPlan[],MATCH(INDEX(MarketingVariances[],ROW()-ROW(MarketingVariances[[#Headers],[Eyl]]),1),INDEX(MarketingPlan[],,1),0),MATCH(MarketingVariances[[#Headers],[Eyl]],MarketingPlan[#Headers],0))-INDEX(MarketingActual[],MATCH(INDEX(MarketingVariances[],ROW()-ROW(MarketingVariances[[#Headers],[Eyl]]),1),INDEX(MarketingPlan[],,1),0),MATCH(MarketingVariances[[#Headers],[Eyl]],MarketingActual[#Headers],0)) -> ₺0.00 | L24: =INDEX(MarketingPlan[],MATCH(INDEX(MarketingVariances[],ROW()-ROW(MarketingVariances[[#Headers],[Eki]]),1),INDEX(MarketingPlan[],,1),0),MATCH(MarketingVariances[[#Headers],[Eki]],MarketingPlan[#Headers],0))-INDEX(MarketingActual[],MATCH(INDEX(MarketingVariances[],ROW()-ROW(MarketingVariances[[#Headers],[Eki]]),1),INDEX(MarketingPlan[],,1),0),MATCH(MarketingVariances[[#Headers],[Eki]],MarketingActual[#Headers],0)) -> ₺5,000.00 | M24: =INDEX(MarketingPlan[],MATCH(INDEX(MarketingVariances[],ROW()-ROW(MarketingVariances[[#Headers],[Kas]]),1),INDEX(MarketingPlan[],,1),0),MATCH(MarketingVariances[[#Headers],[Kas]],MarketingPlan[#Headers],0))-INDEX(MarketingActual[],MATCH(INDEX(MarketingVariances[],ROW()-ROW(MarketingVariances[[#Headers],[Kas]]),1),INDEX(MarketingPlan[],,1),0),MATCH(MarketingVariances[[#Headers],[Kas]],MarketingActual[#Headers],0)) -> ₺0.00 | N24: =INDEX(MarketingPlan[],MATCH(INDEX(MarketingVariances[],ROW()-ROW(MarketingVariances[[#Headers],[Ara]]),1),INDEX(MarketingPlan[],,1),0),MATCH(MarketingVariances[[#Headers],[Ara]],MarketingPlan[#Headers],0))-INDEX(MarketingActual[],MATCH(INDEX(MarketingVariances[],ROW()-ROW(MarketingVariances[[#Headers],[Ara]]),1),INDEX(MarketingPlan[],,1),0),MATCH(MarketingVariances[[#Headers],[Ara]],MarketingActual[#Headers],0)) -> ₺0.00 | O24: =SUM(MarketingVariances[[#This Row],[Oca]:[Ara]]) -> ₺9,700.00
B25: Yardımcı malzemeleri yazdırma | C25: =INDEX(MarketingPlan[],MATCH(INDEX(MarketingVariances[],ROW()-ROW(MarketingVariances[[#Headers],[Oca]]),1),INDEX(MarketingPlan[],,1),0),MATCH(MarketingVariances[[#Headers],[Oca]],MarketingPlan[#Headers],0))-INDEX(MarketingActual[],MATCH(INDEX(MarketingVariances[],ROW()-ROW(MarketingVariances[[#Headers],[Oca]]),1),INDEX(MarketingPlan[],,1),0),MATCH(MarketingVariances[[#Headers],[Oca]],MarketingActual[#Headers],0)) -> ₺100.00 | D25: =INDEX(MarketingPlan[],MATCH(INDEX(MarketingVariances[],ROW()-ROW(MarketingVariances[[#Headers],[Şub]]),1),INDEX(MarketingPlan[],,1),0),MATCH(MarketingVariances[[#Headers],[Şub]],MarketingPlan[#Headers],0))-INDEX(MarketingActual[],MATCH(INDEX(MarketingVariances[],ROW()-ROW(MarketingVariances[[#Headers],[Şub]]),1),INDEX(MarketingPlan[],,1),0),MATCH(MarketingVariances[[#Headers],[Şub]],MarketingActual[#Headers],0)) -> -₺300.00 | E25: =INDEX(MarketingPlan[],MATCH(INDEX(MarketingVariances[],ROW()-ROW(MarketingVariances[[#Headers],[Mar]]),1),INDEX(MarketingPlan[],,1),0),MATCH(MarketingVariances[[#Headers],[Mar]],MarketingPlan[#Headers],0))-INDEX(MarketingActual[],MATCH(INDEX(MarketingVariances[],ROW()-ROW(MarketingVariances[[#Headers],[Mar]]),1),INDEX(MarketingPlan[],,1),0),MATCH(MarketingVariances[[#Headers],[Mar]],MarketingActual[#Headers],0)) -> ₺100.00 | F25: =INDEX(MarketingPlan[],MATCH(INDEX(MarketingVariances[],ROW()-ROW(MarketingVariances[[#Headers],[Nis]]),1),INDEX(MarketingPlan[],,1),0),MATCH(MarketingVariances[[#Headers],[Nis]],MarketingPlan[#Headers],0))-INDEX(MarketingActual[],MATCH(INDEX(MarketingVariances[],ROW()-ROW(MarketingVariances[[#Headers],[Nis]]),1),INDEX(MarketingPlan[],,1),0),MATCH(MarketingVariances[[#Headers],[Nis]],MarketingActual[#Headers],0)) -> ₺100.00 | G25: =INDEX(MarketingPlan[],MATCH(INDEX(MarketingVariances[],ROW()-ROW(MarketingVariances[[#Headers],[May]]),1),INDEX(MarketingPlan[],,1),0),MATCH(MarketingVariances[[#Headers],[May]],MarketingPlan[#Headers],0))-INDEX(MarketingActual[],MATCH(INDEX(MarketingVariances[],ROW()-ROW(MarketingVariances[[#Headers],[May]]),1),INDEX(MarketingPlan[],,1),0),MATCH(MarketingVariances[[#Headers],[May]],MarketingActual[#Headers],0)) -> -₺400.00 | H25: =INDEX(MarketingPlan[],MATCH(INDEX(MarketingVariances[],ROW()-ROW(MarketingVariances[[#Headers],[Haz]]),1),INDEX(MarketingPlan[],,1),0),MATCH(MarketingVariances[[#Headers],[Haz]],MarketingPlan[#Headers],0))-INDEX(MarketingActual[],MATCH(INDEX(MarketingVariances[],ROW()-ROW(MarketingVariances[[#Headers],[Haz]]),1),INDEX(MarketingPlan[],,1),0),MATCH(MarketingVariances[[#Headers],[Haz]],MarketingActual[#Headers],0)) -> ₺20.00 | I25: =INDEX(MarketingPlan[],MATCH(INDEX(MarketingVariances[],ROW()-ROW(MarketingVariances[[#Headers],[Tem]]),1),INDEX(MarketingPlan[],,1),0),MATCH(MarketingVariances[[#Headers],[Tem]],MarketingPlan[#Headers],0))-INDEX(MarketingActual[],MATCH(INDEX(MarketingVariances[],ROW()-ROW(MarketingVariances[[#Headers],[Tem]]),1),INDEX(MarketingPlan[],,1),0),MATCH(MarketingVariances[[#Headers],[Tem]],MarketingActual[#Headers],0)) -> ₺200.00 | J25: =INDEX(MarketingPlan[],MATCH(INDEX(MarketingVariances[],ROW()-ROW(MarketingVariances[[#Headers],[Ağu]]),1),INDEX(MarketingPlan[],,1),0),MATCH(MarketingVariances[[#Headers],[Ağu]],MarketingPlan[#Headers],0))-INDEX(MarketingActual[],MATCH(INDEX(MarketingVariances[],ROW()-ROW(MarketingVariances[[#Headers],[Ağu]]),1),INDEX(MarketingPlan[],,1),0),MATCH(MarketingVariances[[#Headers],[Ağu]],MarketingActual[#Headers],0)) -> ₺200.00 | K25: =INDEX(MarketingPlan[],MATCH(INDEX(MarketingVariances[],ROW()-ROW(MarketingVariances[[#Headers],[Eyl]]),1),INDEX(MarketingPlan[],,1),0),MATCH(MarketingVariances[[#Headers],[Eyl]],MarketingPlan[#Headers],0))-INDEX(MarketingActual[],MATCH(INDEX(MarketingVariances[],ROW()-ROW(MarketingVariances[[#Headers],[Eyl]]),1),INDEX(MarketingPlan[],,1),0),MATCH(MarketingVariances[[#Headers],[Eyl]],MarketingActual[#Headers],0)) -> ₺200.00 | L25: =INDEX(MarketingPlan[],MATCH(INDEX(MarketingVariances[],ROW()-ROW(MarketingVariances[[#Headers],[Eki]]),1),INDEX(MarketingPlan[],,1),0),MATCH(MarketingVariances[[#Headers],[Eki]],MarketingPlan[#Headers],0))-INDEX(MarketingActual[],MATCH(INDEX(MarketingVariances[],ROW()-ROW(MarketingVariances[[#Headers],[Eki]]),1),INDEX(MarketingPlan[],,1),0),MATCH(MarketingVariances[[#Headers],[Eki]],MarketingActual[#Headers],0)) -> ₺200.00 | M25: =INDEX(MarketingPlan[],MATCH(INDEX(MarketingVariances[],ROW()-ROW(MarketingVariances[[#Headers],[Kas]]),1),INDEX(MarketingPlan[],,1),0),MATCH(MarketingVariances[[#Headers],[Kas]],MarketingPlan[#Headers],0))-INDEX(MarketingActual[],MATCH(INDEX(MarketingVariances[],ROW()-ROW(MarketingVariances[[#Headers],[Kas]]),1),INDEX(MarketingPlan[],,1),0),MATCH(MarketingVariances[[#Headers],[Kas]],MarketingActual[#Headers],0)) -> ₺200.00 | N25: =INDEX(MarketingPlan[],MATCH(INDEX(MarketingVariances[],ROW()-ROW(MarketingVariances[[#Headers],[Ara]]),1),INDEX(MarketingPlan[],,1),0),MATCH(MarketingVariances[[#Headers],[Ara]],MarketingPlan[#Headers],0))-INDEX(MarketingActual[],MATCH(INDEX(MarketingVariances[],ROW()-ROW(MarketingVariances[[#Headers],[Ara]]),1),INDEX(MarketingPlan[],,1),0),MATCH(MarketingVariances[[#Headers],[Ara]],MarketingActual[#Headers],0)) -> ₺200.00 | O25: =SUM(MarketingVariances[[#This Row],[Oca]:[Ara]]) -> ₺820.00
B26: Pazarlama etkinlikleri | C26: =INDEX(MarketingPlan[],MATCH(INDEX(MarketingVariances[],ROW()-ROW(MarketingVariances[[#Headers],[Oca]]),1),INDEX(MarketingPlan[],,1),0),MATCH(MarketingVariances[[#Headers],[Oca]],MarketingPlan[#Headers],0))-INDEX(MarketingActual[],MATCH(INDEX(MarketingVariances[],ROW()-ROW(MarketingVariances[[#Headers],[Oca]]),1),INDEX(MarketingPlan[],,1),0),MATCH(MarketingVariances[[#Headers],[Oca]],MarketingActual[#Headers],0)) -> ₺200.00 | D26: =INDEX(MarketingPlan[],MATCH(INDEX(MarketingVariances[],ROW()-ROW(MarketingVariances[[#Headers],[Şub]]),1),INDEX(MarketingPlan[],,1),0),MATCH(MarketingVariances[[#Headers],[Şub]],MarketingPlan[#Headers],0))-INDEX(MarketingActual[],MATCH(INDEX(MarketingVariances[],ROW()-ROW(MarketingVariances[[#Headers],[Şub]]),1),INDEX(MarketingPlan[],,1),0),MATCH(MarketingVariances[[#Headers],[Şub]],MarketingActual[#Headers],0)) -> -₺200.00 | E26: =INDEX(MarketingPlan[],MATCH(INDEX(MarketingVariances[],ROW()-ROW(MarketingVariances[[#Headers],[Mar]]),1),INDEX(MarketingPlan[],,1),0),MATCH(MarketingVariances[[#Headers],[Mar]],MarketingPlan[#Headers],0))-INDEX(MarketingActual[],MATCH(INDEX(MarketingVariances[],ROW()-ROW(MarketingVariances[[#Headers],[Mar]]),1),INDEX(MarketingPlan[],,1),0),MATCH(MarketingVariances[[#Headers],[Mar]],MarketingActual[#Headers],0)) -> -₺200.00 | F26: =INDEX(MarketingPlan[],MATCH(INDEX(MarketingVariances[],ROW()-ROW(MarketingVariances[[#Headers],[Nis]]),1),INDEX(MarketingPlan[],,1),0),MATCH(MarketingVariances[[#Headers],[Nis]],MarketingPlan[#Headers],0))-INDEX(MarketingActual[],MATCH(INDEX(MarketingVariances[],ROW()-ROW(MarketingVariances[[#Headers],[Nis]]),1),INDEX(MarketingPlan[],,1),0),MATCH(MarketingVariances[[#Headers],[Nis]],MarketingActual[#Headers],0)) -> ₺300.00 | G26: =INDEX(MarketingPlan[],MATCH(INDEX(MarketingVariances[],ROW()-ROW(MarketingVariances[[#Headers],[May]]),1),INDEX(MarketingPlan[],,1),0),MATCH(MarketingVariances[[#Headers],[May]],MarketingPlan[#Headers],0))-INDEX(MarketingActual[],MATCH(INDEX(MarketingVariances[],ROW()-ROW(MarketingVariances[[#Headers],[May]]),1),INDEX(MarketingPlan[],,1),0),MATCH(MarketingVariances[[#Headers],[May]],MarketingActual[#Headers],0)) -> ₺500.00 | H26: =INDEX(MarketingPlan[],MATCH(INDEX(MarketingVariances[],ROW()-ROW(MarketingVariances[[#Headers],[Haz]]),1),INDEX(MarketingPlan[],,1),0),MATCH(MarketingVariances[[#Headers],[Haz]],MarketingPlan[#Headers],0))-INDEX(MarketingActual[],MATCH(INDEX(MarketingVariances[],ROW()-ROW(MarketingVariances[[#Headers],[Haz]]),1),INDEX(MarketingPlan[],,1),0),MATCH(MarketingVariances[[#Headers],[Haz]],MarketingActual[#Headers],0)) -> -₺300.00 | I26: =INDEX(MarketingPlan[],MATCH(INDEX(MarketingVariances[],ROW()-ROW(MarketingVariances[[#Headers],[Tem]]),1),INDEX(MarketingPlan[],,1),0),MATCH(MarketingVariances[[#Headers],[Tem]],MarketingPlan[#Headers],0))-INDEX(MarketingActual[],MATCH(INDEX(MarketingVariances[],ROW()-ROW(MarketingVariances[[#Headers],[Tem]]),1),INDEX(MarketingPlan[],,1),0),MATCH(MarketingVariances[[#Headers],[Tem]],MarketingActual[#Headers],0)) -> ₺2,000.00 | J26: =INDEX(MarketingPlan[],MATCH(INDEX(MarketingVariances[],ROW()-ROW(MarketingVariances[[#Headers],[Ağu]]),1),INDEX(MarketingPlan[],,1),0),MATCH(MarketingVariances[[#Headers],[Ağu]],MarketingPlan[#Headers],0))-INDEX(MarketingActual[],MATCH(INDEX(MarketingVariances[],ROW()-ROW(MarketingVariances[[#Headers],[Ağu]]),1),INDEX(MarketingPlan[],,1),0),MATCH(MarketingVariances[[#Headers],[Ağu]],MarketingActual[#Headers],0)) -> ₺5,000.00 | K26: =INDEX(MarketingPlan[],MATCH(INDEX(MarketingVariances[],ROW()-ROW(MarketingVariances[[#Headers],[Eyl]]),1),INDEX(MarketingPlan[],,1),0),MATCH(MarketingVariances[[#Headers],[Eyl]],MarketingPlan[#Headers],0))-INDEX(MarketingActual[],MATCH(INDEX(MarketingVariances[],ROW()-ROW(MarketingVariances[[#Headers],[Eyl]]),1),INDEX(MarketingPlan[],,1),0),MATCH(MarketingVariances[[#Headers],[Eyl]],MarketingActual[#Headers],0)) -> ₺2,000.00 | L26: =INDEX(MarketingPlan[],MATCH(INDEX(MarketingVariances[],ROW()-ROW(MarketingVariances[[#Headers],[Eki]]),1),INDEX(MarketingPlan[],,1),0),MATCH(MarketingVariances[[#Headers],[Eki]],MarketingPlan[#Headers],0))-INDEX(MarketingActual[],MATCH(INDEX(MarketingVariances[],ROW()-ROW(MarketingVariances[[#Headers],[Eki]]),1),INDEX(MarketingPlan[],,1),0),MATCH(MarketingVariances[[#Headers],[Eki]],MarketingActual[#Headers],0)) -> ₺2,000.00 | M26: =INDEX(MarketingPlan[],MATCH(INDEX(MarketingVariances[],ROW()-ROW(MarketingVariances[[#Headers],[Kas]]),1),INDEX(MarketingPlan[],,1),0),MATCH(MarketingVariances[[#Headers],[Kas]],MarketingPlan[#Headers],0))-INDEX(MarketingActual[],MATCH(INDEX(MarketingVariances[],ROW()-ROW(MarketingVariances[[#Headers],[Kas]]),1),INDEX(MarketingPlan[],,1),0),MATCH(MarketingVariances[[#Headers],[Kas]],MarketingActual[#Headers],0)) -> ₺2,000.00 | N26: =INDEX(MarketingPlan[],MATCH(INDEX(MarketingVariances[],ROW()-ROW(MarketingVariances[[#Headers],[Ara]]),1),INDEX(MarketingPlan[],,1),0),MATCH(MarketingVariances[[#Headers],[Ara]],MarketingPlan[#Headers],0))-INDEX(MarketingActual[],MATCH(INDEX(MarketingVariances[],ROW()-ROW(MarketingVariances[[#Headers],[Ara]]),1),INDEX(MarketingPlan[],,1),0),MATCH(MarketingVariances[[#Headers],[Ara]],MarketingActual[#Headers],0)) -> ₺5,000.00 | O26: =SUM(MarketingVariances[[#This Row],[Oca]:[Ara]]) -> ₺18,300.00
B27: Sair giderler | C27: =INDEX(MarketingPlan[],MATCH(INDEX(MarketingVariances[],ROW()-ROW(MarketingVariances[[#Headers],[Oca]]),1),INDEX(MarketingPlan[],,1),0),MATCH(MarketingVariances[[#Headers],[Oca]],MarketingPlan[#Headers],0))-INDEX(MarketingActual[],MATCH(INDEX(MarketingVariances[],ROW()-ROW(MarketingVariances[[#Headers],[Oca]]),1),INDEX(MarketingPlan[],,1),0),MATCH(MarketingVariances[[#Headers],[Oca]],MarketingActual[#Headers],0)) -> ₺55.00 | D27: =INDEX(MarketingPlan[],MATCH(INDEX(MarketingVariances[],ROW()-ROW(MarketingVariances[[#Headers],[Şub]]),1),INDEX(MarketingPlan[],,1),0),MATCH(MarketingVariances[[#Headers],[Şub]],MarketingPlan[#Headers],0))-INDEX(MarketingActual[],MATCH(INDEX(MarketingVariances[],ROW()-ROW(MarketingVariances[[#Headers],[Şub]]),1),INDEX(MarketingPlan[],,1),0),MATCH(MarketingVariances[[#Headers],[Şub]],MarketingActual[#Headers],0)) -> ₺44.00 | E27: =INDEX(MarketingPlan[],MATCH(INDEX(MarketingVariances[],ROW()-ROW(MarketingVariances[[#Headers],[Mar]]),1),INDEX(MarketingPlan[],,1),0),MATCH(MarketingVariances[[#Headers],[Mar]],MarketingPlan[#Headers],0))-INDEX(MarketingActual[],MATCH(INDEX(MarketingVariances[],ROW()-ROW(MarketingVariances[[#Headers],[Mar]]),1),INDEX(MarketingPlan[],,1),0),MATCH(MarketingVariances[[#Headers],[Mar]],MarketingActual[#Headers],0)) -> ₺77.00 | F27: =INDEX(MarketingPlan[],MATCH(INDEX(MarketingVariances[],ROW()-ROW(MarketingVariances[[#Headers],[Nis]]),1),INDEX(MarketingPlan[],,1),0),MATCH(MarketingVariances[[#Headers],[Nis]],MarketingPlan[#Headers],0))-INDEX(MarketingActual[],MATCH(INDEX(MarketingVariances[],ROW()-ROW(MarketingVariances[[#Headers],[Nis]]),1),INDEX(MarketingPlan[],,1),0),MATCH(MarketingVariances[[#Headers],[Nis]],MarketingActual[#Headers],0)) -> -₺23.00 | G27: =INDEX(MarketingPlan[],MATCH(INDEX(MarketingVariances[],ROW()-ROW(MarketingVariances[[#Headers],[May]]),1),INDEX(MarketingPlan[],,1),0),MATCH(MarketingVariances[[#Headers],[May]],MarketingPlan[#Headers],0))-INDEX(MarketingActual[],MATCH(INDEX(MarketingVariances[],ROW()-ROW(MarketingVariances[[#Headers],[May]]),1),INDEX(MarketingPlan[],,1),0),MATCH(MarketingVariances[[#Headers],[May]],MarketingActual[#Headers],0)) -> ₺13.00 | H27: =INDEX(MarketingPlan[],MATCH(INDEX(MarketingVariances[],ROW()-ROW(MarketingVariances[[#Headers],[Haz]]),1),INDEX(MarketingPlan[],,1),0),MATCH(MarketingVariances[[#Headers],[Haz]],MarketingPlan[#Headers],0))-INDEX(MarketingActual[],MATCH(INDEX(MarketingVariances[],ROW()-ROW(MarketingVariances[[#Headers],[Haz]]),1),INDEX(MarketingPlan[],,1),0),MATCH(MarketingVariances[[#Headers],[Haz]],MarketingActual[#Headers],0)) -> -₺45.00 | I27: =INDEX(MarketingPlan[],MATCH(INDEX(MarketingVariances[],ROW()-ROW(MarketingVariances[[#Headers],[Tem]]),1),INDEX(MarketingPlan[],,1),0),MATCH(MarketingVariances[[#Headers],[Tem]],MarketingPlan[#Headers],0))-INDEX(MarketingActual[],MATCH(INDEX(MarketingVariances[],ROW()-ROW(MarketingVariances[[#Headers],[Tem]]),1),INDEX(MarketingPlan[],,1),0),MATCH(MarketingVariances[[#Headers],[Tem]],MarketingActual[#Headers],0)) -> ₺200.00 | J27: =INDEX(MarketingPlan[],MATCH(INDEX(MarketingVariances[],ROW()-ROW(MarketingVariances[[#Headers],[Ağu]]),1),INDEX(MarketingPlan[],,1),0),MATCH(MarketingVariances[[#Headers],[Ağu]],MarketingPlan[#Headers],0))-INDEX(MarketingActual[],MATCH(INDEX(MarketingVariances[],ROW()-ROW(MarketingVariances[[#Headers],[Ağu]]),1),INDEX(MarketingPlan[],,1),0),MATCH(MarketingVariances[[#Headers],[Ağu]],MarketingActual[#Headers],0)) -> ₺200.00 | K27: =INDEX(MarketingPlan[],MATCH(INDEX(MarketingVariances[],ROW()-ROW(MarketingVariances[[#Headers],[Eyl]]),1),INDEX(MarketingPlan[],,1),0),MATCH(MarketingVariances[[#Headers],[Eyl]],MarketingPlan[#Headers],0))-INDEX(MarketingActual[],MATCH(INDEX(MarketingVariances[],ROW()-ROW(MarketingVariances[[#Headers],[Eyl]]),1),INDEX(MarketingPlan[],,1),0),MATCH(MarketingVariances[[#Headers],[Eyl]],MarketingActual[#Headers],0)) -> ₺200.00 | L27: =INDEX(MarketingPlan[],MATCH(INDEX(MarketingVariances[],ROW()-ROW(MarketingVariances[[#Headers],[Eki]]),1),INDEX(MarketingPlan[],,1),0),MATCH(MarketingVariances[[#Headers],[Eki]],MarketingPlan[#Headers],0))-INDEX(MarketingActual[],MATCH(INDEX(MarketingVariances[],ROW()-ROW(MarketingVariances[[#Headers],[Eki]]),1),INDEX(MarketingPlan[],,1),0),MATCH(MarketingVariances[[#Headers],[Eki]],MarketingActual[#Headers],0)) -> ₺200.00 | M27: =INDEX(MarketingPlan[],MATCH(INDEX(MarketingVariances[],ROW()-ROW(MarketingVariances[[#Headers],[Kas]]),1),INDEX(MarketingPlan[],,1),0),MATCH(MarketingVariances[[#Headers],[Kas]],MarketingPlan[#Headers],0))-INDEX(MarketingActual[],MATCH(INDEX(MarketingVariances[],ROW()-ROW(MarketingVariances[[#Headers],[Kas]]),1),INDEX(MarketingPlan[],,1),0),MATCH(MarketingVariances[[#Headers],[Kas]],MarketingActual[#Headers],0)) -> ₺200.00 | N27: =INDEX(MarketingPlan[],MATCH(INDEX(MarketingVariances[],ROW()-ROW(MarketingVariances[[#Headers],[Ara]]),1),INDEX(MarketingPlan[],,1),0),MATCH(MarketingVariances[[#Headers],[Ara]],MarketingPlan[#Headers],0))-INDEX(MarketingActual[],MATCH(INDEX(MarketingVariances[],ROW()-ROW(MarketingVariances[[#Headers],[Ara]]),1),INDEX(MarketingPlan[],,1),0),MATCH(MarketingVariances[[#Headers],[Ara]],MarketingActual[#Headers],0)) -> ₺200.00 | O27: =SUM(MarketingVariances[[#This Row],[Oca]:[Ara]]) -> ₺1,321.00
B28: Ara toplam | C28: =SUBTOTAL(109,MarketingVariances[Oca]) -> ₺555.00 | D28: =SUBTOTAL(109,MarketingVariances[Şub]) -> -₺456.00 | E28: =SUBTOTAL(109,MarketingVariances[Mar]) -> -₺23.00 | F28: =SUBTOTAL(109,MarketingVariances[Nis]) -> -₺123.00 | G28: =SUBTOTAL(109,MarketingVariances[May]) -> ₺113.00 | H28: =SUBTOTAL(109,MarketingVariances[Haz]) -> -₺825.00 | I28: =SUBTOTAL(109,MarketingVariances[Tem]) -> ₺8,100.00 | J28: =SUBTOTAL(109,MarketingVariances[Ağu]) -> ₺6,100.00 | K28: =SUBTOTAL(109,MarketingVariances[Eyl]) -> ₺3,100.00 | L28: =SUBTOTAL(109,MarketingVariances[Eki]) -> ₺8,100.00 | M28: =SUBTOTAL(109,MarketingVariances[Kas]) -> ₺3,100.00 | N28: =SUBTOTAL(109,MarketingVariances[Ara]) -> ₺6,900.00 | O28: =SUBTOTAL(109,MarketingVariances[YIL]) -> ₺34,641.00
B30: Eğitim/Seyahat | C30: Oca | D30: Şub | E30: Mar | F30: Nis | G30: May | H30: Haz | I30: Tem | J30: Ağu | K30: Eyl | L30: Eki | M30: Kas | N30: Ara | O30: YIL
B31: Eğitim sınıfları | C31: =INDEX(EğitimVeSeyahatPlanı[],MATCH(INDEX(TrainingAndTravelVariances[],ROW()-ROW(TrainingAndTravelVariances[[#Headers],[Oca]]),1),INDEX(EğitimVeSeyahatPlanı[],,1),0),MATCH(TrainingAndTravelVariances[[#Headers],[Oca]],EğitimVeSeyahatPlanı[#Headers],0))-INDEX(TrainingAndTravelActual[],MATCH(INDEX(TrainingAndTravelVariances[],ROW()-ROW(TrainingAndTravelVariances[[#Headers],[Oca]]),1),INDEX(EğitimVeSeyahatPlanı[],,1),0),MATCH(TrainingAndTravelVariances[[#Headers],[Oca]],TrainingAndTravelActual[#Headers],0)) -> ₺400.00 | D31: =INDEX(EğitimVeSeyahatPlanı[],MATCH(INDEX(TrainingAndTravelVariances[],ROW()-ROW(TrainingAndTravelVariances[[#Headers],[Şub]]),1),INDEX(EğitimVeSeyahatPlanı[],,1),0),MATCH(TrainingAndTravelVariances[[#Headers],[Şub]],EğitimVeSeyahatPlanı[#Headers],0))-INDEX(TrainingAndTravelActual[],MATCH(INDEX(TrainingAndTravelVariances[],ROW()-ROW(TrainingAndTravelVariances[[#Headers],[Şub]]),1),INDEX(EğitimVeSeyahatPlanı[],,1),0),MATCH(TrainingAndTravelVariances[[#Headers],[Şub]],TrainingAndTravelActual[#Headers],0)) -> -₺400.00 | E31: =INDEX(EğitimVeSeyahatPlanı[],MATCH(INDEX(TrainingAndTravelVariances[],ROW()-ROW(TrainingAndTravelVariances[[#Headers],[Mar]]),1),INDEX(EğitimVeSeyahatPlanı[],,1),0),MATCH(TrainingAndTravelVariances[[#Headers],[Mar]],EğitimVeSeyahatPlanı[#Headers],0))-INDEX(TrainingAndTravelActual[],MATCH(INDEX(TrainingAndTravelVariances[],ROW()-ROW(TrainingAndTravelVariances[[#Headers],[Mar]]),1),INDEX(EğitimVeSeyahatPlanı[],,1),0),MATCH(TrainingAndTravelVariances[[#Headers],[Mar]],TrainingAndTravelActual[#Headers],0)) -> ₺600.00 | F31: =INDEX(EğitimVeSeyahatPlanı[],MATCH(INDEX(TrainingAndTravelVariances[],ROW()-ROW(TrainingAndTravelVariances[[#Headers],[Nis]]),1),INDEX(EğitimVeSeyahatPlanı[],,1),0),MATCH(TrainingAndTravelVariances[[#Headers],[Nis]],EğitimVeSeyahatPlanı[#Headers],0))-INDEX(TrainingAndTravelActual[],MATCH(INDEX(TrainingAndTravelVariances[],ROW()-ROW(TrainingAndTravelVariances[[#Headers],[Nis]]),1),INDEX(EğitimVeSeyahatPlanı[],,1),0),MATCH(TrainingAndTravelVariances[[#Headers],[Nis]],TrainingAndTravelActual[#Headers],0)) -> ₺400.00 | G31: =INDEX(EğitimVeSeyahatPlanı[],MATCH(INDEX(TrainingAndTravelVariances[],ROW()-ROW(TrainingAndTravelVariances[[#Headers],[May]]),1),INDEX(EğitimVeSeyahatPlanı[],,1),0),MATCH(TrainingAndTravelVariances[[#Headers],[May]],EğitimVeSeyahatPlanı[#Headers],0))-INDEX(TrainingAndTravelActual[],MATCH(INDEX(TrainingAndTravelVariances[],ROW()-ROW(TrainingAndTravelVariances[[#Headers],[May]]),1),INDEX(EğitimVeSeyahatPlanı[],,1),0),MATCH(TrainingAndTravelVariances[[#Headers],[May]],TrainingAndTravelActual[#Headers],0)) -> ₺800.00 | H31: =INDEX(EğitimVeSeyahatPlanı[],MATCH(INDEX(TrainingAndTravelVariances[],ROW()-ROW(TrainingAndTravelVariances[[#Headers],[Haz]]),1),INDEX(EğitimVeSeyahatPlanı[],,1),0),MATCH(TrainingAndTravelVariances[[#Headers],[Haz]],EğitimVeSeyahatPlanı[#Headers],0))-INDEX(TrainingAndTravelActual[],MATCH(INDEX(TrainingAndTravelVariances[],ROW()-ROW(TrainingAndTravelVariances[[#Headers],[Haz]]),1),INDEX(EğitimVeSeyahatPlanı[],,1),0),MATCH(TrainingAndTravelVariances[[#Headers],[Haz]],TrainingAndTravelActual[#Headers],0)) -> -₺800.00 | I31: =INDEX(EğitimVeSeyahatPlanı[],MATCH(INDEX(TrainingAndTravelVariances[],ROW()-ROW(TrainingAndTravelVariances[[#Headers],[Tem]]),1),INDEX(EğitimVeSeyahatPlanı[],,1),0),MATCH(TrainingAndTravelVariances[[#Headers],[Tem]],EğitimVeSeyahatPlanı[#Headers],0))-INDEX(TrainingAndTravelActual[],MATCH(INDEX(TrainingAndTravelVariances[],ROW()-ROW(TrainingAndTravelVariances[[#Headers],[Tem]]),1),INDEX(EğitimVeSeyahatPlanı[],,1),0),MATCH(TrainingAndTravelVariances[[#Headers],[Tem]],TrainingAndTravelActual[#Headers],0)) -> ₺2,000.00 | J31: =INDEX(EğitimVeSeyahatPlanı[],MATCH(INDEX(TrainingAndTravelVariances[],ROW()-ROW(TrainingAndTravelVariances[[#Headers],[Ağu]]),1),INDEX(EğitimVeSeyahatPlanı[],,1),0),MATCH(TrainingAndTravelVariances[[#Headers],[Ağu]],EğitimVeSeyahatPlanı[#Headers],0))-INDEX(TrainingAndTravelActual[],MATCH(INDEX(TrainingAndTravelVariances[],ROW()-ROW(TrainingAndTravelVariances[[#Headers],[Ağu]]),1),INDEX(EğitimVeSeyahatPlanı[],,1),0),MATCH(TrainingAndTravelVariances[[#Headers],[Ağu]],TrainingAndTravelActual[#Headers],0)) -> ₺2,000.00 | K31: =INDEX(EğitimVeSeyahatPlanı[],MATCH(INDEX(TrainingAndTravelVariances[],ROW()-ROW(TrainingAndTravelVariances[[#Headers],[Eyl]]),1),INDEX(EğitimVeSeyahatPlanı[],,1),0),MATCH(TrainingAndTravelVariances[[#Headers],[Eyl]],EğitimVeSeyahatPlanı[#Headers],0))-INDEX(TrainingAndTravelActual[],MATCH(INDEX(TrainingAndTravelVariances[],ROW()-ROW(TrainingAndTravelVariances[[#Headers],[Eyl]]),1),INDEX(EğitimVeSeyahatPlanı[],,1),0),MATCH(TrainingAndTravelVariances[[#Headers],[Eyl]],TrainingAndTravelActual[#Headers],0)) -> ₺2,000.00 | L31: =INDEX(EğitimVeSeyahatPlanı[],MATCH(INDEX(TrainingAndTravelVariances[],ROW()-ROW(TrainingAndTravelVariances[[#Headers],[Eki]]),1),INDEX(EğitimVeSeyahatPlanı[],,1),0),MATCH(TrainingAndTravelVariances[[#Headers],[Eki]],EğitimVeSeyahatPlanı[#Headers],0))-INDEX(TrainingAndTravelActual[],MATCH(INDEX(TrainingAndTravelVariances[],ROW()-ROW(TrainingAndTravelVariances[[#Headers],[Eki]]),1),INDEX(EğitimVeSeyahatPlanı[],,1),0),MATCH(TrainingAndTravelVariances[[#Headers],[Eki]],TrainingAndTravelActual[#Headers],0)) -> ₺2,000.00 | M31: =INDEX(EğitimVeSeyahatPlanı[],MATCH(INDEX(TrainingAndTravelVariances[],ROW()-ROW(TrainingAndTravelVariances[[#Headers],[Kas]]),1),INDEX(EğitimVeSeyahatPlanı[],,1),0),MATCH(TrainingAndTravelVariances[[#Headers],[Kas]],EğitimVeSeyahatPlanı[#Headers],0))-INDEX(TrainingAndTravelActual[],MATCH(INDEX(TrainingAndTravelVariances[],ROW()-ROW(TrainingAndTravelVariances[[#Headers],[Kas]]),1),INDEX(EğitimVeSeyahatPlanı[],,1),0),MATCH(TrainingAndTravelVariances[[#Headers],[Kas]],TrainingAndTravelActual[#Headers],0)) -> ₺2,000.00 | N31: =INDEX(EğitimVeSeyahatPlanı[],MATCH(INDEX(TrainingAndTravelVariances[],ROW()-ROW(TrainingAndTravelVariances[[#Headers],[Ara]]),1),INDEX(EğitimVeSeyahatPlanı[],,1),0),MATCH(TrainingAndTravelVariances[[#Headers],[Ara]],EğitimVeSeyahatPlanı[#Headers],0))-INDEX(TrainingAndTravelActual[],MATCH(INDEX(TrainingAndTravelVariances[],ROW()-ROW(TrainingAndTravelVariances[[#Headers],[Ara]]),1),INDEX(EğitimVeSeyahatPlanı[],,1),0),MATCH(TrainingAndTravelVariances[[#Headers],[Ara]],TrainingAndTravelActual[#Headers],0)) -> ₺2,000.00 | O31: =SUM(TrainingAndTravelVariances[[#This Row],[Oca]:[Ara]]) -> ₺13,000.00
B32: Eğitimle ilgili seyahat maliyetleri | C32: =INDEX(EğitimVeSeyahatPlanı[],MATCH(INDEX(TrainingAndTravelVariances[],ROW()-ROW(TrainingAndTravelVariances[[#Headers],[Oca]]),1),INDEX(EğitimVeSeyahatPlanı[],,1),0),MATCH(TrainingAndTravelVariances[[#Headers],[Oca]],EğitimVeSeyahatPlanı[#Headers],0))-INDEX(TrainingAndTravelActual[],MATCH(INDEX(TrainingAndTravelVariances[],ROW()-ROW(TrainingAndTravelVariances[[#Headers],[Oca]]),1),INDEX(EğitimVeSeyahatPlanı[],,1),0),MATCH(TrainingAndTravelVariances[[#Headers],[Oca]],TrainingAndTravelActual[#Headers],0)) -> ₺800.00 | D32: =INDEX(EğitimVeSeyahatPlanı[],MATCH(INDEX(TrainingAndTravelVariances[],ROW()-ROW(TrainingAndTravelVariances[[#Headers],[Şub]]),1),INDEX(EğitimVeSeyahatPlanı[],,1),0),MATCH(TrainingAndTravelVariances[[#Headers],[Şub]],EğitimVeSeyahatPlanı[#Headers],0))-INDEX(TrainingAndTravelActual[],MATCH(INDEX(TrainingAndTravelVariances[],ROW()-ROW(TrainingAndTravelVariances[[#Headers],[Şub]]),1),INDEX(EğitimVeSeyahatPlanı[],,1),0),MATCH(TrainingAndTravelVariances[[#Headers],[Şub]],TrainingAndTravelActual[#Headers],0)) -> -₺200.00 | E32: =INDEX(EğitimVeSeyahatPlanı[],MATCH(INDEX(TrainingAndTravelVariances[],ROW()-ROW(TrainingAndTravelVariances[[#Headers],[Mar]]),1),INDEX(EğitimVeSeyahatPlanı[],,1),0),MATCH(TrainingAndTravelVariances[[#Headers],[Mar]],EğitimVeSeyahatPlanı[#Headers],0))-INDEX(TrainingAndTravelActual[],MATCH(INDEX(TrainingAndTravelVariances[],ROW()-ROW(TrainingAndTravelVariances[[#Headers],[Mar]]),1),INDEX(EğitimVeSeyahatPlanı[],,1),0),MATCH(TrainingAndTravelVariances[[#Headers],[Mar]],TrainingAndTravelActual[#Headers],0)) -> ₺600.00 | F32: =INDEX(EğitimVeSeyahatPlanı[],MATCH(INDEX(TrainingAndTravelVariances[],ROW()-ROW(TrainingAndTravelVariances[[#Headers],[Nis]]),1),INDEX(EğitimVeSeyahatPlanı[],,1),0),MATCH(TrainingAndTravelVariances[[#Headers],[Nis]],EğitimVeSeyahatPlanı[#Headers],0))-INDEX(TrainingAndTravelActual[],MATCH(INDEX(TrainingAndTravelVariances[],ROW()-ROW(TrainingAndTravelVariances[[#Headers],[Nis]]),1),INDEX(EğitimVeSeyahatPlanı[],,1),0),MATCH(TrainingAndTravelVariances[[#Headers],[Nis]],TrainingAndTravelActual[#Headers],0)) -> ₺800.00 | G32: =INDEX(EğitimVeSeyahatPlanı[],MATCH(INDEX(TrainingAndTravelVariances[],ROW()-ROW(TrainingAndTravelVariances[[#Headers],[May]]),1),INDEX(EğitimVeSeyahatPlanı[],,1),0),MATCH(TrainingAndTravelVariances[[#Headers],[May]],EğitimVeSeyahatPlanı[#Headers],0))-INDEX(TrainingAndTravelActual[],MATCH(INDEX(TrainingAndTravelVariances[],ROW()-ROW(TrainingAndTravelVariances[[#Headers],[May]]),1),INDEX(EğitimVeSeyahatPlanı[],,1),0),MATCH(TrainingAndTravelVariances[[#Headers],[May]],TrainingAndTravelActual[#Headers],0)) -> ₺1,200.00 | H32: =INDEX(EğitimVeSeyahatPlanı[],MATCH(INDEX(TrainingAndTravelVariances[],ROW()-ROW(TrainingAndTravelVariances[[#Headers],[Haz]]),1),INDEX(EğitimVeSeyahatPlanı[],,1),0),MATCH(TrainingAndTravelVariances[[#Headers],[Haz]],EğitimVeSeyahatPlanı[#Headers],0))-INDEX(TrainingAndTravelActual[],MATCH(INDEX(TrainingAndTravelVariances[],ROW()-ROW(TrainingAndTravelVariances[[#Headers],[Haz]]),1),INDEX(EğitimVeSeyahatPlanı[],,1),0),MATCH(TrainingAndTravelVariances[[#Headers],[Haz]],TrainingAndTravelActual[#Headers],0)) -> -₺1,500.00 | I32: =INDEX(EğitimVeSeyahatPlanı[],MATCH(INDEX(TrainingAndTravelVariances[],ROW()-ROW(TrainingAndTravelVariances[[#Headers],[Tem]]),1),INDEX(EğitimVeSeyahatPlanı[],,1),0),MATCH(TrainingAndTravelVariances[[#Headers],[Tem]],EğitimVeSeyahatPlanı[#Headers],0))-INDEX(TrainingAndTravelActual[],MATCH(INDEX(TrainingAndTravelVariances[],ROW()-ROW(TrainingAndTravelVariances[[#Headers],[Tem]]),1),INDEX(EğitimVeSeyahatPlanı[],,1),0),MATCH(TrainingAndTravelVariances[[#Headers],[Tem]],TrainingAndTravelActual[#Headers],0)) -> ₺2,000.00 | J32: =INDEX(EğitimVeSeyahatPlanı[],MATCH(INDEX(TrainingAndTravelVariances[],ROW()-ROW(TrainingAndTravelVariances[[#Headers],[Ağu]]),1),INDEX(EğitimVeSeyahatPlanı[],,1),0),MATCH(TrainingAndTravelVariances[[#Headers],[Ağu]],EğitimVeSeyahatPlanı[#Headers],0))-INDEX(TrainingAndTravelActual[],MATCH(INDEX(TrainingAndTravelVariances[],ROW()-ROW(TrainingAndTravelVariances[[#Headers],[Ağu]]),1),INDEX(EğitimVeSeyahatPlanı[],,1),0),MATCH(TrainingAndTravelVariances[[#Headers],[Ağu]],TrainingAndTravelActual[#Headers],0)) -> ₺2,000.00 | K32: =INDEX(EğitimVeSeyahatPlanı[],MATCH(INDEX(TrainingAndTravelVariances[],ROW()-ROW(TrainingAndTravelVariances[[#Headers],[Eyl]]),1),INDEX(EğitimVeSeyahatPlanı[],,1),0),MATCH(TrainingAndTravelVariances[[#Headers],[Eyl]],EğitimVeSeyahatPlanı[#Headers],0))-INDEX(TrainingAndTravelActual[],MATCH(INDEX(TrainingAndTravelVariances[],ROW()-ROW(TrainingAndTravelVariances[[#Headers],[Eyl]]),1),INDEX(EğitimVeSeyahatPlanı[],,1),0),MATCH(TrainingAndTravelVariances[[#Headers],[Eyl]],TrainingAndTravelActual[#Headers],0)) -> ₺2,000.00 | L32: =INDEX(EğitimVeSeyahatPlanı[],MATCH(INDEX(TrainingAndTravelVariances[],ROW()-ROW(TrainingAndTravelVariances[[#Headers],[Eki]]),1),INDEX(EğitimVeSeyahatPlanı[],,1),0),MATCH(TrainingAndTravelVariances[[#Headers],[Eki]],EğitimVeSeyahatPlanı[#Headers],0))-INDEX(TrainingAndTravelActual[],MATCH(INDEX(TrainingAndTravelVariances[],ROW()-ROW(TrainingAndTravelVariances[[#Headers],[Eki]]),1),INDEX(EğitimVeSeyahatPlanı[],,1),0),MATCH(TrainingAndTravelVariances[[#Headers],[Eki]],TrainingAndTravelActual[#Headers],0)) -> ₺2,000.00 | M32: =INDEX(EğitimVeSeyahatPlanı[],MATCH(INDEX(TrainingAndTravelVariances[],ROW()-ROW(TrainingAndTravelVariances[[#Headers],[Kas]]),1),INDEX(EğitimVeSeyahatPlanı[],,1),0),MATCH(TrainingAndTravelVariances[[#Headers],[Kas]],EğitimVeSeyahatPlanı[#Headers],0))-INDEX(TrainingAndTravelActual[],MATCH(INDEX(TrainingAndTravelVariances[],ROW()-ROW(TrainingAndTravelVariances[[#Headers],[Kas]]),1),INDEX(EğitimVeSeyahatPlanı[],,1),0),MATCH(TrainingAndTravelVariances[[#Headers],[Kas]],TrainingAndTravelActual[#Headers],0)) -> ₺2,000.00 | N32: =INDEX(EğitimVeSeyahatPlanı[],MATCH(INDEX(TrainingAndTravelVariances[],ROW()-ROW(TrainingAndTravelVariances[[#Headers],[Ara]]),1),INDEX(EğitimVeSeyahatPlanı[],,1),0),MATCH(TrainingAndTravelVariances[[#Headers],[Ara]],EğitimVeSeyahatPlanı[#Headers],0))-INDEX(TrainingAndTravelActual[],MATCH(INDEX(TrainingAndTravelVariances[],ROW()-ROW(TrainingAndTravelVariances[[#Headers],[Ara]]),1),INDEX(EğitimVeSeyahatPlanı[],,1),0),MATCH(TrainingAndTravelVariances[[#Headers],[Ara]],TrainingAndTravelActual[#Headers],0)) -> ₺2,000.00 | O32: =SUM(TrainingAndTravelVariances[[#This Row],[Oca]:[Ara]]) -> ₺13,700.00
B33: Ara toplam | C33: =SUBTOTAL(109,TrainingAndTravelVariances[Oca]) -> ₺1,200.00 | D33: =SUBTOTAL(109,TrainingAndTravelVariances[Şub]) -> -₺600.00 | E33: =SUBTOTAL(109,TrainingAndTravelVariances[Mar]) -> ₺1,200.00 | F33: =SUBTOTAL(109,TrainingAndTravelVariances[Nis]) -> ₺1,200.00 | G33: =SUBTOTAL(109,TrainingAndTravelVariances[May]) -> ₺2,000.00 | H33: =SUBTOTAL(109,TrainingAndTravelVariances[Haz]) -> -₺2,300.00 | I33: =SUBTOTAL(109,TrainingAndTravelVariances[Tem]) -> ₺4,000.00 | J33: =SUBTOTAL(109,TrainingAndTravelVariances[Ağu]) -> ₺4,000.00 | K33: =SUBTOTAL(109,TrainingAndTravelVariances[Eyl]) -> ₺4,000.00 | L33: =SUBTOTAL(109,TrainingAndTravelVariances[Eki]) -> ₺4,000.00 | M33: =SUBTOTAL(109,TrainingAndTravelVariances[Kas]) -> ₺4,000.00 | N33: =SUBTOTAL(109,TrainingAndTravelVariances[Ara]) -> ₺4,000.00 | O33: =SUBTOTAL(109,TrainingAndTravelVariances[YIL]) -> ₺26,700.00
B35: TOPLAMLAR | C35: Oca | D35: Şub | E35: Mar | F35: Nis | G35: May | H35: Haz | I35: Tem | J35: Ağu | K35: Eyl | L35: Eki | M35: Kas | N35: Ara | O35: Yıl
B36: Aylık Fiili Giderler | C36: =TrainingAndTravelVariances[[#Totals],[Oca]]+MarketingVariances[[#Totals],[Oca]]+OfficeVariances[[#Totals],[Oca]]+EmployeeVariances[[#Totals],[Oca]] -> ₺1,738.00 | D36: =TrainingAndTravelVariances[[#Totals],[Şub]]+MarketingVariances[[#Totals],[Şub]]+OfficeVariances[[#Totals],[Şub]]+EmployeeVariances[[#Totals],[Şub]] -> -₺984.00 | E36: =TrainingAndTravelVariances[[#Totals],[Mar]]+MarketingVariances[[#Totals],[Mar]]+OfficeVariances[[#Totals],[Mar]]+EmployeeVariances[[#Totals],[Mar]] -> ₺1,255.00 | F36: =TrainingAndTravelVariances[[#Totals],[Nis]]+MarketingVariances[[#Totals],[Nis]]+OfficeVariances[[#Totals],[Nis]]+EmployeeVariances[[#Totals],[Nis]] -> ₺301.00 | G36: =TrainingAndTravelVariances[[#Totals],[May]]+MarketingVariances[[#Totals],[May]]+OfficeVariances[[#Totals],[May]]+EmployeeVariances[[#Totals],[May]] -> ₺1,440.00 | H36: =TrainingAndTravelVariances[[#Totals],[Haz]]+MarketingVariances[[#Totals],[Haz]]+OfficeVariances[[#Totals],[Haz]]+EmployeeVariances[[#Totals],[Haz]] -> -₺3,744.00 | I36: =TrainingAndTravelVariances[[#Totals],[Tem]]+MarketingVariances[[#Totals],[Tem]]+OfficeVariances[[#Totals],[Tem]]+EmployeeVariances[[#Totals],[Tem]] -> ₺134,695.00 | J36: =TrainingAndTravelVariances[[#Totals],[Ağu]]+MarketingVariances[[#Totals],[Ağu]]+OfficeVariances[[#Totals],[Ağu]]+EmployeeVariances[[#Totals],[Ağu]] -> ₺138,918.00 | K36: =TrainingAndTravelVariances[[#Totals],[Eyl]]+MarketingVariances[[#Totals],[Eyl]]+OfficeVariances[[#Totals],[Eyl]]+EmployeeVariances[[#Totals],[Eyl]] -> ₺135,918.00 | L36: =TrainingAndTravelVariances[[#Totals],[Eki]]+MarketingVariances[[#Totals],[Eki]]+OfficeVariances[[#Totals],[Eki]]+EmployeeVariances[[#Totals],[Eki]] -> ₺140,918.00 | M36: =TrainingAndTravelVariances[[#Totals],[Kas]]+MarketingVariances[[#Totals],[Kas]]+OfficeVariances[[#Totals],[Kas]]+EmployeeVariances[[#Totals],[Kas]] -> ₺136,218.00 | N36: =TrainingAndTravelVariances[[#Totals],[Ara]]+MarketingVariances[[#Totals],[Ara]]+OfficeVariances[[#Totals],[Ara]]+EmployeeVariances[[#Totals],[Ara]] -> ₺140,018.00 | O36: =TrainingAndTravelVariances[[#Totals],[YIL]]+MarketingVariances[[#Totals],[YIL]]+OfficeVariances[[#Totals],[YIL]]+EmployeeVariances[[#Totals],[YIL]] -> ₺826,691.00
B37: TOPLAM Fiili Giderler | C37: =SUM($C$36:C36) -> ₺1,738.00 | D37: =SUM($C$36:D36) -> ₺754.00 | E37: =SUM($C$36:E36) -> ₺2,009.00 | F37: =SUM($C$36:F36) -> ₺2,310.00 | G37: =SUM($C$36:G36) -> ₺3,750.00 | H37: =SUM($C$36:H36) -> ₺6.00 | I37: =SUM($C$36:I36) -> ₺134,701.00 | J37: =SUM($C$36:J36) -> ₺273,619.00 | K37: =SUM($C$36:K36) -> ₺409,537.00 | L37: =SUM($C$36:L36) -> ₺550,455.00 | M37: =SUM($C$36:M36) -> ₺686,673.00 | N37: =SUM($C$36:N36) -> ₺826,691.00

Sheet GİDER ANALİZİ
B2: ='PLANLANAN GİDERLER'!B2:D3 -> Şirket Adı
E3: =worksheet_title -> Ayrıntılı Gider Tahminleri
B5: Gider Kategorisi | C5: Planlanan Giderler | D5: Fiili Giderler | E5: Gider Varyansları | F5: Varyans Yüzdesi
B6: Çalışan Maliyetleri | C6: =ÇalışanPlan[[#Totals],[YIL]] -> ₺1,355,090.00 | D6: =EmployeeActual[[#Totals],[YIL]] -> ₺659,130.00 | E6: =C6-D6 -> ₺695,960.00 | F6: =E6/C6 -> 51%
B7: ='PLANLANAN GİDERLER'!B10 -> Ofis Maliyetleri | C7: =OfficePlan[[#Totals],[YIL]] -> ₺138,740.00 | D7: =OfficeActual[[#Totals],[YIL]] -> ₺69,350.00 | E7: =C7-D7 -> ₺69,390.00 | F7: =E7/C7 -> 50%
B8: ='PLANLANAN GİDERLER'!B21 -> Pazarlama Maliyetleri | C8: =MarketingPlan[[#Totals],[YIL]] -> ₺67,800.00 | D8: =MarketingActual[[#Totals],[YIL]] -> ₺33,159.00 | E8: =C8-D8 -> ₺34,641.00 | F8: =E8/C8 -> 51%
B9: ='PLANLANAN GİDERLER'!B30 -> Eğitim/Seyahat | C9: =EğitimVeSeyahatPlanı[[#Totals],[YIL]] -> ₺48,000.00 | D9: =TrainingAndTravelActual[[#Totals],[YIL]] -> ₺21,300.00 | E9: =C9-D9 -> ₺26,700.00 | F9: =E9/C9 -> 56%
B10: ='PLANLANAN GİDERLER'!B35 -> TOPLAMLAR | C10: ='PLANLANAN GİDERLER'!O36 -> ₺1,609,630.00 | D10: ='FİİLİ GİDERLER'!O36 -> ₺782,939.00 | E10: =C10-D10 -> ₺826,691.00 | F10: =E10/C10 -> 51%
